Workbook

Sheet شيت الرابع
A1: غ | E1: =TEXT(E3,"dddd") -> Sunday | J1: عدد التلاميذ | N1: منقطعين | P1: لغة عربية | W1: رياضيات | AD1: لغة إنجليزية | AK1: دراسات | AR1: علوم
K2: =COUNT(G12:G118) -> 107 | O2: =COUNTIF(#REF!,"غ") ->  | P2: نصف العام | S2: آخر العام | W2: نصف العام | Z2: آخر العام | AD2: نصف العام | AG2: آخر العام | AK2: نصف العام | AN2: آخر العام | AR2: نصف العام | AU2: آخر العام
D3: 1 | E3: =TODAY() -> 2018-04-08 | H3: دمج ( 2 ) | P3: ناجح | Q3: =Q5-Q4 -> 95 | S3: ناجح | T3: =T5-T4 -> 95 | U3: دون المستوى | W3: ناجح | X3: =X5-X4 -> 88 | Z3: ناجح | AA3: =AA5-AA4 -> 101 | AB3: دون المستوى | AD3: ناجح | AE3: =AE5-AE4 -> 97 | AG3: ناجح | AH3: =AH5-AH4 -> 103 | AI3: دون المستوى | AK3: ناجح | AL3: =AL5-AL4 -> 98 | AN3: ناجح | AO3: =AO5-AO4 -> 102 | AP3: دون المستوى | AR3: ناجح | AS3: =AS5-AS4 -> 105 | AU3: ناجح | AV3: =AV5-AV4 -> 106 | AW3: دون المستوى
I4: بداية رقم الجلوس | P4: راسب | Q4: =SUMPRODUCT(--(Q12:Q118<20)+(Q12:Q118="غ")) -> 12 | S4: راسب | T4: =SUMPRODUCT(--(S12:S118<20)+(S12:S118="غ")) -> 12 | U4: =COUNTIF(V12:V118,"دون المستوى") -> 7 | W4: راسب | X4: =SUMPRODUCT(--(X12:X118<20)+(X12:X118="غ")) -> 19 | Z4: راسب | AA4: =SUMPRODUCT(--(Z12:Z118<20)+(Z12:Z118="غ")) -> 6 | AB4: =COUNTIF(AC12:AC118,"دون المستوى") -> 2 | AD4: راسب | AE4: =SUMPRODUCT(--(AE12:AE118<20)+(AE12:AE118="غ")) -> 10 | AG4: راسب | AH4: =SUMPRODUCT(--(AG12:AG118<20)+(AG12:AG118="غ")) -> 4 | AI4: =COUNTIF(AJ12:AJ118,"دون المستوى") -> 4 | AK4: راسب | AL4: =SUMPRODUCT(--(AL12:AL118<20)+(AL12:AL118="غ")) -> 9 | AN4: راسب | AO4: =SUMPRODUCT(--(AN12:AN118<20)+(AN12:AN118="غ")) -> 5 | AP4: =COUNTIF(AQ12:AQ118,"دون المستوى") -> 4 | AR4: راسب | AS4: =SUMPRODUCT(--(AS12:AS118<20)+(AS12:AS118="غ")) -> 2 | AU4: راسب | AV4: =SUMPRODUCT(--(AU12:AU118<20)+(AU12:AU118="غ")) -> 1 | AW4: =COUNTIF(#REF!,"دون المستوى") -> 
E5: =TODAY() -> 2018-04-08 | P5: حاضر | Q5: =$K$2-Q6 -> 107 | S5: حاضر | T5: =$K$2-T6 -> 107 | W5: حاضر | X5: =$K$2-X6 -> 107 | Z5: حاضر | AA5: =$K$2-AA6 -> 107 | AD5: حاضر | AE5: =$K$2-AE6 -> 107 | AG5: حاضر | AH5: =$K$2-AH6 -> 107 | AK5: حاضر | AL5: =$K$2-AL6 -> 107 | AN5: حاضر | AO5: =$K$2-AO6 -> 107 | AR5: حاضر | AS5: =$K$2-AS6 -> 107 | AU5: حاضر | AV5: =$K$2-AV6 -> 107
P6: غياب | Q6: =COUNTIF(Q12:Q118,"غ") -> 0 | S6: غياب | T6: =COUNTIF(S12:S118,"غ") -> 0 | W6: غياب | X6: =COUNTIF(X12:X118,"غ") -> 0 | Z6: غياب | AA6: =COUNTIF(Z12:Z118,"غ") -> 0 | AD6: غياب | AE6: =COUNTIF(AE12:AE118,"غ") -> 0 | AG6: غياب | AH6: =COUNTIF(AG12:AG118,"غ") -> 0 | AK6: غياب | AL6: =COUNTIF(AL12:AL118,"غ") -> 0 | AN6: غياب | AO6: =COUNTIF(AN12:AN118,"غ") -> 0 | AR6: غياب | AS6: =COUNTIF(AS12:AS118,"غ") -> 0 | AU6: غياب | AV6: =COUNTIF(AU12:AU118,"غ") -> 0
I7: 1 | P7: النسبة | Q7: =Q3/Q5 -> 0.8878504673 | S7: النسبة | T7: =T3/T5 -> 0.8878504673 | W7: النسبة | X7: =X3/X5 -> 0.8224299065 | Z7: النسبة | AA7: =AA3/AA5 -> 0.9439252336 | AD7: النسبة | AE7: =AE3/AE5 -> 0.9065420561 | AG7: النسبة | AH7: =AH3/AH5 -> 0.9626168224 | AK7: النسبة | AL7: =AL3/AL5 -> 0.9158878505 | AN7: النسبة | AO7: =AO3/AO5 -> 0.953271028 | AR7: النسبة | AS7: =AS3/AS5 -> 0.9813084112 | AU7: النسبة | AV7: =AV3/AV5 -> 0.9906542056
A8: الرقم القومى | B8: تاريخ الميلاد | C8: سرى ترم أول | D8: سرى ترم ثان | E8: الرقم السرى ترم ثان | F8: الرقم السرى ترم أول | G8: م | H8: إســــــــم التلميذ | I8: رقم الجلوس | J8: تاريخ الميلاد | M8: السن فى أول أكتوبر | P8: لغة عربية | V8: المستوى | W8: رياضيات | AC8: المستوى | AD8: لغة إنجليزية | AJ8: المستوى | AK8: دراسات | AQ8: المستوى | AR8: علوم
P9: نصف العام | R9: آخر العام | T9: مجموع | U9: الدرجة | W9: نصف العام | Y9: آخر العام | AA9: مجموع | AB9: الدرجة | AD9: نصف العام | AF9: آخر العام | AH9: مجموع | AI9: الدرجة | AK9: نصف العام | AM9: آخر العام | AO9: مجموع | AP9: الدرجة | AR9: نصف العام | AT9: آخر العام | AV9: مجموع | AW9: الدرجة
P10: تقويم شامل | Q10: إختبار | R10: تقويم شامل | S10: إختبار | W10: تقويم شامل | X10: إختبار | Y10: تقويم شامل | Z10: إختبار | AD10: تقويم شامل | AE10: إختبار | AF10: تقويم شامل | AG10: إختبار | AK10: تقويم شامل | AL10: إختبار | AM10: تقويم شامل | AN10: إختبار | AR10: تقويم شامل | AS10: إختبار | AT10: تقويم شامل | AU10: إختبار
J11: يوم | K11: شهر | L11: سنة | M11: 2016-10-01 | P11: 60 | Q11: 40 | R11: 60 | S11: 40 | T11: =P11+Q11+R11+S11 -> 200 | U11: 100 | W11: 60 | X11: 40 | Y11: 60 | Z11: 40 | AA11: =W11+X11+Y11+Z11 -> 200 | AB11: 80 | AD11: 60 | AE11: 40 | AF11: 60 | AG11: 40 | AH11: =AD11+AE11+AF11+AG11 -> 200 | AI11: 40 | AK11: 60 | AL11: 40 | AM11: 60 | AN11: 40 | AO11: =AK11+AL11+AM11+AN11 -> 200 | AP11: 40 | AR11: 60 | AS11: 40 | AT11: 60 | AU11: 32+8 | AV11: 200 | AW11: 40
A12: 30701231701276 | B12: =TEXT(LEFT(A12,7)+17000000,"####-##-##")+0 -> 2007-01-23 | E12: 201 | F12: 70 | G12: =IF(H12="","",SUBTOTAL(3,$H$12:H12)) -> 1 | H12: ابراهيم موسى ابراهيم موسي المرادى | I12: =IF(OR($I$7=0,$H12=""),"",$I$7) -> 1 | J12: =DAY(B12) -> 23 | K12: =MONTH(B12) -> 1 | L12: =YEAR(B12) -> 2007 | M12: =DATEDIF(DATE(L12,K12,J12),$M$11,"md") -> 8 | N12: =DATEDIF(DATE(L12,K12,J12),$M$11,"ym") -> 8 | O12: =DATEDIF(DATE(L12,K12,J12),$M$11,"y") -> 9 | P12: 52 | Q12: 33 | R12: 52 | S12: 29 | T12: =IF(AND(P12="غ",Q12="غ",R12="غ",S12="غ"),"غ",SUM(P12:S12)) -> 166 | U12: =IF(T12="غ","غ",T12*100/200) -> 83 | V12: =IF(OR(U12="",S12=""),"",IF(OR(S12<12,S12="غ",U12="غ"),"دون المستوى",IF(U12>=85,"ممتاز",IF(U12>=75,"جيد جداً",IF(U12>=65,"جيد",IF(U12>=50,"مقبول",IF(OR(U12<50,U12="غ"),"دون المستوى"))))))) -> جيد جداً | W12: 53 | X12: 22 | Y12: 53 | Z12: 34 | AA12: =IF(AND(W12="غ",X12="غ",Y12="غ",Z12="غ"),"غ",SUM(W12:Z12)) -> 162 | AB12: =IF(AA12="غ","غ",AA12*80/200) -> 64.8 | AC12: =IF(OR(AB12="",Z12=""),"",IF(OR(Z12<12,Z12="غ",AB12="غ"),"دون المستوى",IF(AB12>=68,"ممتاز",IF(AB12>=60,"جيد جداً",IF(AB12>=52,"جيد",IF(AB12>=40,"مقبول",IF(OR(AB12<40,AB12="غ"),"دون المستوى"))))))) -> جيد جداً | AD12: 59 | AE12: 36 | AF12: 58 | AG12: 38 | AH12: =IF(AND(AD12="غ",AE12="غ",AF12="غ",AG12="غ"),"غ",SUM(AD12:AG12)) -> 191 | AI12: =IF(AH12="غ","غ",AH12*40/200) -> 38.2 | AJ12: =IF(OR(AI12="",AG12=""),"",IF(OR(AG12<12,AG12="غ",AI12="غ"),"دون المستوى",IF(AI12>=34,"ممتاز",IF(AI12>=30,"جيد جداً",IF(AI12>=26,"جيد",IF(AI12>=20,"مقبول",IF(OR(AI12<20,AI12="غ"),"دون المستوى"))))))) -> ممتاز | AK12: 55 | AL12: 40 | AM12: 55 | AN12: 38 | AO12: =IF(AND(AK12="غ",AL12="غ",AM12="غ",AN12="غ"),"غ",SUM(AK12:AN12)) -> 188 | AP12: =IF(AO12="غ","غ",AO12*40/200) -> 37.6 | AQ12: =IF(OR(AP12="",AN12=""),"",IF(OR(AN12<12,AN12="غ",AP12="غ"),"دون المستوى",IF(AP12>=34,"ممتاز",IF(AP12>=30,"جيد جداً",IF(AP12>=26,"جيد",IF(AP12>=20,"مقبول",IF(OR(AP12<20,AP12="غ"),"دون المستوى"))))))) -> ممتاز | AR12: 56 | AS12: 35 | AT12: 55 | AU12: 40 | AV12: =IF(AND(AR12="غ",AS12="غ",AT12="غ",AU12="غ"),"غ",SUM(AR12:AU12)) -> 186 | AW12: =IF(AV12="غ","غ",AV12*40/200) -> 37.2
A13: 30707071704255 | B13: =TEXT(LEFT(A13,7)+17000000,"####-##-##")+0 -> 2007-07-07 | E13: 202 | F13: 71 | G13: =IF(H13="","",SUBTOTAL(3,$H$12:H13)) -> 2 | H13: أحمد السيد عبد الوهاب محمد عرفه | I13: =IF(OR($I$7=0,$H13=""),"",$I12+1) -> 2 | J13: 7 | K13: 7 | L13: 2007 | M13: =DATEDIF(DATE(L13,K13,J13),$M$11,"md") -> 24 | N13: =DATEDIF(DATE(L13,K13,J13),$M$11,"ym") -> 2 | O13: =DATEDIF(DATE(L13,K13,J13),$M$11,"y") -> 9 | P13: 58 | Q13: 39 | R13: 57 | S13: 39 | T13: =IF(AND(P13="غ",Q13="غ",R13="غ",S13="غ"),"غ",SUM(P13:S13)) -> 193 | U13: =IF(T13="غ","غ",T13*100/200) -> 96.5 | V13: =IF(OR(U13="",S13=""),"",IF(OR(S13<12,S13="غ",U13="غ"),"دون المستوى",IF(U13>=85,"ممتاز",IF(U13>=75,"جيد جداً",IF(U13>=65,"جيد",IF(U13>=50,"مقبول",IF(OR(U13<50,U13="غ"),"دون المستوى"))))))) -> ممتاز | W13: 56 | X13: 32 | Y13: 57 | Z13: 37 | AA13: =IF(AND(W13="غ",X13="غ",Y13="غ",Z13="غ"),"غ",SUM(W13:Z13)) -> 182 | AB13: =IF(AA13="غ","غ",AA13*80/200) -> 72.8 | AC13: =IF(OR(AB13="",Z13=""),"",IF(OR(Z13<12,Z13="غ",AB13="غ"),"دون المستوى",IF(AB13>=68,"ممتاز",IF(AB13>=60,"جيد جداً",IF(AB13>=52,"جيد",IF(AB13>=40,"مقبول",IF(OR(AB13<40,AB13="غ"),"دون المستوى"))))))) -> ممتاز | AD13: 57 | AE13: 37 | AF13: 60 | AG13: 38 | AH13: =IF(AND(AD13="غ",AE13="غ",AF13="غ",AG13="غ"),"غ",SUM(AD13:AG13)) -> 192 | AI13: =IF(AH13="غ","غ",AH13*40/200) -> 38.4 | AJ13: =IF(OR(AI13="",AG13=""),"",IF(OR(AG13<12,AG13="غ",AI13="غ"),"دون المستوى",IF(AI13>=34,"ممتاز",IF(AI13>=30,"جيد جداً",IF(AI13>=26,"جيد",IF(AI13>=20,"مقبول",IF(OR(AI13<20,AI13="غ"),"دون المستوى"))))))) -> ممتاز | AK13: 59 | AL13: 40 | AM13: 59 | AN13: 40 | AO13: =IF(AND(AK13="غ",AL13="غ",AM13="غ",AN13="غ"),"غ",SUM(AK13:AN13)) -> 198 | AP13: =IF(AO13="غ","غ",AO13*40/200) -> 39.6 | AQ13: =IF(OR(AP13="",AN13=""),"",IF(OR(AN13<12,AN13="غ",AP13="غ"),"دون المستوى",IF(AP13>=34,"ممتاز",IF(AP13>=30,"جيد جداً",IF(AP13>=26,"جيد",IF(AP13>=20,"مقبول",IF(OR(AP13<20,AP13="غ"),"دون المستوى"))))))) -> ممتاز | AR13: 56 | AS13: 35 | AT13: 57 | AU13: 40 | AV13: =IF(AND(AR13="غ",AS13="غ",AT13="غ",AU13="غ"),"غ",SUM(AR13:AU13)) -> 188 | AW13: =IF(AV13="غ","غ",AV13*40/200) -> 37.6
A14: 30710041700892 | B14: 2007-10-04 | E14: 203 | F14: 72 | G14: =IF(H14="","",SUBTOTAL(3,$H$12:H14)) -> 3 | H14: أحمد ايهاب مسعد محمد سلطان | I14: 3 | J14: 4 | K14: 10 | L14: 2007 | M14: 27 | N14: 11 | O14: 8 | P14: 48 | Q14: 11 | R14: 51 | S14: 29 | T14: =IF(AND(P14="غ",Q14="غ",R14="غ",S14="غ"),"غ",SUM(P14:S14)) -> 139 | U14: 69.5 | V14: =IF(OR(U14="",S14=""),"",IF(OR(S14<12,S14="غ",U14="غ"),"دون المستوى",IF(U14>=85,"ممتاز",IF(U14>=75,"جيد جداً",IF(U14>=65,"جيد",IF(U14>=50,"مقبول",IF(OR(U14<50,U14="غ"),"دون المستوى"))))))) -> جيد | W14: 50 | X14: 17 | Y14: 51 | Z14: 35 | AA14: 153 | AB14: 61.2 | AC14: جيد جداً | AD14: 54 | AE14: 31 | AF14: 56 | AG14: 31 | AH14: 172 | AI14: 34.4 | AJ14: ممتاز | AK14: 50 | AL14: 16 | AM14: 53 | AN14: 34 | AO14: 153 | AP14: =IF(AO14="غ","غ",AO14*40/200) -> 30.6 | AQ14: جيد جداً | AR14: 53 | AS14: 29 | AT14: 53 | AU14: 38 | AV14: 173 | AW14: 34.6
A15: 30709131702934 | B15: 2007-09-13 | E15: 204 | F15: 73 | G15: =IF(H15="","",SUBTOTAL(3,$H$12:H15)) -> 4 | H15: أحمد سامح إبراهيم مصيلحى | I15: 4 | J15: 13 | K15: 9 | L15: 2007 | M15: 18 | N15: 0 | O15: 9 | P15: 44 | Q15: 1 | R15: 50 | S15: 14 | T15: =IF(AND(P15="غ",Q15="غ",R15="غ",S15="غ"),"غ",SUM(P15:S15)) -> 109 | U15: 54.5 | V15: مقبول | W15: 45 | X15: 12 | Y15: 44 | Z15: 24 | AA15: 125 | AB15: 50 | AC15: مقبول | AD15: 41 | AE15: 21 | AF15: 45 | AG15: 23 | AH15: 130 | AI15: 26 | AJ15: جيد | AK15: 38 | AL15: 26 | AM15: 42 | AN15: 30 | AO15: 136 | AP15: 27.2 | AQ15: جيد | AR15: 41 | AS15: 28 | AT15: 42 | AU15: 28 | AV15: 139 | AW15: 27.8
A16: 30704011705016 | B16: 2007-04-01 | E16: 205 | F16: 74 | G16: =IF(H16="","",SUBTOTAL(3,$H$12:H16)) -> 5 | H16: أحمد عصام صبحي محمد المرادي | I16: 5 | J16: 1 | K16: 4 | L16: 2007 | M16: 0 | N16: 6 | O16: 9 | P16: 49 | Q16: 26 | R16: 48 | S16: 18 | T16: =IF(AND(P16="غ",Q16="غ",R16="غ",S16="غ"),"غ",SUM(P16:S16)) -> 141 | U16: 70.5 | V16: جيد | W16: 44 | X16: 17 | Y16: 48 | Z16: 24 | AA16: 133 | AB16: 53.2 | AC16: جيد | AD16: 47 | AE16: 18 | AF16: 48 | AG16: 32 | AH16: 145 | AI16: 29 | AJ16: جيد | AK16: 37 | AL16: 25 | AM16: 47 | AN16: 38 | AO16: 147 | AP16: 29.4 | AQ16: جيد | AR16: 40 | AS16: 28 | AT16: 45 | AU16: 23 | AV16: 136 | AW16: 27.2
A17: 30606141702475 | B17: 2006-06-14 | E17: 206 | F17: 75 | G17: =IF(H17="","",SUBTOTAL(3,$H$12:H17)) -> 6 | H17: أحمد محمد سعيد سيد المرادي | I17: 6 | J17: 14 | K17: 6 | L17: 2006 | M17: 17 | N17: 3 | O17: 10 | P17: 33 | Q17: 20 | R17: 32 | S17: 2 | T17: =IF(AND(P17="غ",Q17="غ",R17="غ",S17="غ"),"غ",SUM(P17:S17)) -> 87 | U17: 43.5 | V17: دون المستوى | W17: 43 | X17: 30 | Y17: 42 | Z17: 17 | AA17: 132 | AB17: 52.8 | AC17: جيد | AD17: 36 | AE17: 20 | AF17: 37 | AG17: 23 | AH17: 116 | AI17: 23.2 | AJ17: مقبول | AK17: 30 | AL17: 11 | AM17: 48 | AN17: 2 | AO17: 91 | AP17: 18.2 | AQ17: دون المستوى | AR17: 39 | AS17: 24 | AT17: 44 | AU17: 20 | AV17: 127 | AW17: 25.4
A18: 30803171702054 | B18: 2008-03-17 | E18: 207 | F18: 76 | G18: =IF(H18="","",SUBTOTAL(3,$H$12:H18)) -> 7 | H18: أحمد محمد منصور باز الشريف | I18: 7 | J18: 17 | K18: 3 | L18: 2008 | M18: 14 | N18: 6 | O18: 8 | P18: 59 | Q18: 34 | R18: 57 | S18: 37 | T18: 187 | U18: 93.5 | V18: ممتاز | W18: 53 | X18: 34 | Y18: 53 | Z18: 37 | AA18: 177 | AB18: 70.8 | AC18: ممتاز | AD18: 60 | AE18: 37 | AF18: 60 | AG18: 37 | AH18: 194 | AI18: 38.8 | AJ18: ممتاز | AK18: 59 | AL18: 38 | AM18: 55 | AN18: 40 | AO18: 192 | AP18: 38.4 | AQ18: ممتاز | AR18: 59 | AS18: 34 | AT18: 56 | AU18: 40 | AV18: 189 | AW18: 37.8
A19: 30704231400798 | B19: 2007-04-23 | E19: 208 | F19: 77 | G19: =IF(H19="","",SUBTOTAL(3,$H$12:H19)) -> 8 | H19: أحمد هاني عبدالوهاب علي ابراهيم | I19: 8 | J19: 23 | K19: 4 | L19: 2007 | M19: 8 | N19: 5 | O19: 9 | P19: 49 | Q19: 19 | R19: 51 | S19: 20 | T19: 139 | U19: 69.5 | V19: جيد | W19: 47 | X19: 11 | Y19: 56 | Z19: 35 | AA19: 149 | AB19: 59.6 | AC19: جيد | AD19: 53 | AE19: 23 | AF19: 51 | AG19: 36 | AH19: 163 | AI19: 32.6 | AJ19: جيد جداً | AK19: 48 | AL19: 9 | AM19: 45 | AN19: 26 | AO19: 128 | AP19: 25.6 | AQ19: مقبول | AR19: 53 | AS19: 32 | AT19: 44 | AU19: 32 | AV19: 161 | AW19: 32.2
A20: 30708061703052 | B20: 2007-08-06 | E20: 209 | F20: 78 | G20: =IF(H20="","",SUBTOTAL(3,$H$12:H20)) -> 9 | H20: احمد وجيه محمد الخضرى سيد احمد | I20: 9 | J20: 6 | K20: 8 | L20: 2007 | M20: 25 | N20: 1 | O20: 9 | P20: 47 | Q20: 5 | R20: 42 | S20: 19 | T20: 113 | U20: 56.5 | V20: مقبول | W20: 43 | X20: 10 | Y20: 42 | Z20: 27 | AA20: 122 | AB20: 48.8 | AC20: مقبول | AD20: 44 | AE20: 16 | AF20: 41 | AG20: 30 | AH20: 131 | AI20: 26.2 | AJ20: جيد | AK20: 46 | AL20: 5 | AM20: 44 | AN20: 12 | AO20: 107 | AP20: 21.4 | AQ20: مقبول | AR20: 38 | AS20: 27 | AT20: 44 | AU20: 22 | AV20: 131 | AW20: 26.2
A21: 30701111702392 | B21: 2007-01-11 | E21: 210 | F21: 79 | G21: =IF(H21="","",SUBTOTAL(3,$H$12:H21)) -> 10 | H21: أحمد وليد رمضان عبد العال متولي | I21: 10 | J21: 11 | K21: 1 | L21: 2007 | M21: 20 | N21: 8 | O21: 9 | P21: 55 | Q21: 33 | R21: 57 | S21: 33 | T21: 178 | U21: 89 | V21: ممتاز | W21: 49 | X21: 32 | Y21: 51 | Z21: 39 | AA21: 171 | AB21: 68.4 | AC21: ممتاز | AD21: 59 | AE21: 38 | AF21: 60 | AG21: 40 | AH21: 197 | AI21: 39.4 | AJ21: ممتاز | AK21: 54 | AL21: 34 | AM21: 57 | AN21: 40 | AO21: 185 | AP21: 37 | AQ21: ممتاز | AR21: 54 | AS21: 32 | AT21: 55 | AU21: 40 | AV21: 181 | AW21: 36.2
A22: 30710281701977 | B22: 2007-10-28 | E22: 211 | F22: 80 | G22: =IF(H22="","",SUBTOTAL(3,$H$12:H22)) -> 11 | H22: أكرم محمد محمود حسنين | I22: 11 | J22: 28 | K22: 10 | L22: 2007 | M22: 3 | N22: 11 | O22: 8 | P22: 60 | Q22: 40 | R22: 60 | S22: 40 | T22: 200 | U22: 100 | V22: ممتاز | W22: 53 | X22: 36 | Y22: 55 | Z22: 39 | AA22: 183 | AB22: 73.2 | AC22: ممتاز | AD22: 60 | AE22: 40 | AF22: 60 | AG22: 40 | AH22: 200 | AI22: 40 | AJ22: ممتاز | AK22: 58 | AL22: 40 | AM22: 56 | AN22: 40 | AO22: 194 | AP22: 38.8 | AQ22: ممتاز | AR22: 58 | AS22: 38 | AT22: 60 | AU22: 40 | AV22: 196 | AW22: 39.2
A23: 30712251701037 | B23: 2007-12-25 | E23: 212 | F23: 81 | G23: =IF(H23="","",SUBTOTAL(3,$H$12:H23)) -> 12 | H23: السيد طارق سليمان شادي | I23: 12 | J23: 25 | K23: 12 | L23: 2007 | M23: 6 | N23: 9 | O23: 8 | P23: 59 | Q23: 38 | R23: 59 | S23: 36 | T23: 192 | U23: 96 | V23: ممتاز | W23: 55 | X23: 31 | Y23: 53 | Z23: 40 | AA23: 179 | AB23: 71.6 | AC23: ممتاز | AD23: 59 | AE23: 40 | AF23: 60 | AG23: 40 | AH23: 199 | AI23: 39.8 | AJ23: ممتاز | AK23: 59 | AL23: 40 | AM23: 59 | AN23: 40 | AO23: 198 | AP23: 39.6 | AQ23: ممتاز | AR23: 54 | AS23: 38 | AT23: 60 | AU23: 38 | AV23: 190 | AW23: 38
A24: 30708211701797 | B24: 2007-08-21 | E24: 213 | F24: 82 | G24: =IF(H24="","",SUBTOTAL(3,$H$12:H24)) -> 13 | H24: امير مجدى ابراهيم الجزار | I24: 13 | J24: 21 | K24: 8 | L24: 2007 | M24: 10 | N24: 1 | O24: 9 | P24: 57 | Q24: 40 | R24: 60 | S24: 40 | T24: 197 | U24: 98.5 | V24: ممتاز | W24: 57 | X24: 33 | Y24: 58 | Z24: 35 | AA24: 183 | AB24: 73.2 | AC24: ممتاز | AD24: 58 | AE24: 40 | AF24: 59 | AG24: 39 | AH24: 196 | AI24: 39.2 | AJ24: ممتاز | AK24: 57 | AL24: 38 | AM24: 58 | AN24: 40 | AO24: 193 | AP24: 38.6 | AQ24: ممتاز | AR24: 59 | AS24: 40 | AT24: 58 | AU24: 40 | AV24: 197 | AW24: 39.4
A25: 30803211703555 | B25: 2008-03-21 | E25: 214 | F25: 83 | G25: =IF(H25="","",SUBTOTAL(3,$H$12:H25)) -> 14 | H25: أنس إبراهيم محمد الحاج موسى | I25: 14 | J25: 21 | K25: 3 | L25: 2008 | M25: 10 | N25: 6 | O25: 8 | P25: 59 | Q25: 38 | R25: 59 | S25: 40 | T25: 196 | U25: 98 | V25: ممتاز | W25: 51 | X25: 29 | Y25: 56 | Z25: 39 | AA25: 175 | AB25: 70 | AC25: ممتاز | AD25: 58 | AE25: 40 | AF25: 60 | AG25: 40 | AH25: 198 | AI25: 39.6 | AJ25: ممتاز | AK25: 54 | AL25: 38 | AM25: 57 | AN25: 40 | AO25: 189 | AP25: 37.8 | AQ25: ممتاز | AR25: 55 | AS25: 37 | AT25: 59 | AU25: 40 | AV25: 191 | AW25: 38.2
A26: 30708211701754 | B26: 2007-08-21 | E26: 215 | F26: 84 | G26: =IF(H26="","",SUBTOTAL(3,$H$12:H26)) -> 15 | H26: انس مجدى ابراهيم الجزار | I26: 15 | J26: 21 | K26: 8 | L26: 2007 | M26: 10 | N26: 1 | O26: 9 | P26: 58 | Q26: 38 | R26: 59 | S26: 39 | T26: 194 | U26: 97 | V26: ممتاز | W26: 58 | X26: 30 | Y26: 58 | Z26: 40 | AA26: 186 | AB26: 74.4 | AC26: ممتاز | AD26: 58 | AE26: 39 | AF26: 58 | AG26: 40 | AH26: 195 | AI26: 39 | AJ26: ممتاز | AK26: 58 | AL26: 40 | AM26: 56 | AN26: 40 | AO26: 194 | AP26: 38.8 | AQ26: ممتاز | AR26: 59 | AS26: 39 | AT26: 58 | AU26: 40 | AV26: 196 | AW26: 39.2
A27: 30610211702351 | B27: 2006-10-21 | E27: 216 | F27: 85 | G27: =IF(H27="","",SUBTOTAL(3,$H$12:H27)) -> 16 | H27: جمال محمد جمال عبد الحليم المرادي | I27: 16 | J27: 21 | K27: 10 | L27: 2006 | M27: 10 | N27: 11 | O27: 9 | P27: 48 | Q27: 34 | R27: 51 | S27: 25 | T27: 158 | U27: 79 | V27: جيد جداً | W27: 54 | X27: 15 | Y27: 52 | Z27: 30 | AA27: 151 | AB27: 60.4 | AC27: جيد جداً | AD27: 56 | AE27: 35 | AF27: 56 | AG27: 37 | AH27: 184 | AI27: 36.8 | AJ27: ممتاز | AK27: 52 | AL27: 36 | AM27: 55 | AN27: 38 | AO27: 181 | AP27: 36.2 | AQ27: ممتاز | AR27: 55 | AS27: 37 | AT27: 59 | AU27: 35 | AV27: 186 | AW27: 37.2
A28: 30707021701034 | B28: 2007-07-02 | E28: 217 | F28: 86 | G28: =IF(H28="","",SUBTOTAL(3,$H$12:H28)) -> 17 | H28: حسن أيمن حسن باز الشريف | I28: 17 | J28: 2 | K28: 7 | L28: 2007 | M28: 29 | N28: 2 | O28: 9 | P28: 49 | Q28: 27 | R28: 53 | S28: 28 | T28: 157 | U28: 78.5 | V28: جيد جداً | W28: 57 | X28: 20 | Y28: 48 | Z28: 38 | AA28: 163 | AB28: 65.2 | AC28: جيد جداً | AD28: 56 | AE28: 34 | AF28: 56 | AG28: 40 | AH28: 186 | AI28: 37.2 | AJ28: ممتاز | AK28: 54 | AL28: 34 | AM28: 52 | AN28: 34 | AO28: 174 | AP28: 34.8 | AQ28: ممتاز | AR28: 55 | AS28: 39 | AT28: 56 | AU28: 39 | AV28: 189 | AW28: 37.8
A29: 30710011715194 | B29: 2007-10-01 | E29: 218 | F29: 87 | G29: =IF(H29="","",SUBTOTAL(3,$H$12:H29)) -> 18 | H29: زياد محمد زايد عبد الرازق عبد العال | I29: 18 | J29: 1 | K29: 10 | L29: 2007 | M29: 0 | N29: 0 | O29: 9 | P29: 52 | Q29: 25 | R29: 52 | S29: 18 | T29: 147 | U29: 73.5 | V29: جيد | W29: 46 | X29: 24 | Y29: 51 | Z29: 35 | AA29: 156 | AB29: 62.4 | AC29: جيد جداً | AD29: 53 | AE29: 30 | AF29: 50 | AG29: 36 | AH29: 169 | AI29: 33.8 | AJ29: جيد جداً | AK29: 55 | AL29: 32 | AM29: 48 | AN29: 14 | AO29: 149 | AP29: 29.8 | AQ29: جيد | AR29: 50 | AS29: 32 | AT29: 44 | AU29: 21 | AV29: 147 | AW29: 29.4
A30: 30708161702339 | B30: 2007-08-16 | E30: 219 | F30: 88 | G30: =IF(H30="","",SUBTOTAL(3,$H$12:H30)) -> 19 | H30: سعد محمد سعد محمد سويلم | I30: 19 | J30: 16 | K30: 8 | L30: 2007 | M30: 15 | N30: 1 | O30: 9 | P30: 50 | Q30: 7 | R30: 52 | S30: 31 | T30: 140 | U30: 70 | V30: جيد | W30: 48 | X30: 19 | Y30: 55 | Z30: 32 | AA30: 154 | AB30: 61.6 | AC30: جيد جداً | AD30: 49 | AE30: 27 | AF30: 51 | AG30: 36 | AH30: 163 | AI30: 32.6 | AJ30: جيد جداً | AK30: 50 | AL30: 36 | AM30: 54 | AN30: 32 | AO30: 172 | AP30: 34.4 | AQ30: ممتاز | AR30: 46 | AS30: 28 | AT30: 56 | AU30: 32 | AV30: 162 | AW30: 32.4
A31: 30711181701976 | B31: 2007-11-18 | E31: 220 | F31: 89 | G31: =IF(H31="","",SUBTOTAL(3,$H$12:H31)) -> 20 | H31: سيف ايمن موسى ابراهيم حسين | I31: 20 | J31: 18 | K31: 11 | L31: 2007 | M31: 13 | N31: 10 | O31: 8 | P31: 57 | Q31: 40 | R31: 57 | S31: 36 | T31: 190 | U31: 95 | V31: ممتاز | W31: 49 | X31: 31 | Y31: 53 | Z31: 32 | AA31: 165 | AB31: 66 | AC31: جيد جداً | AD31: 58 | AE31: 40 | AF31: 60 | AG31: 38 | AH31: 196 | AI31: 39.2 | AJ31: ممتاز | AK31: 52 | AL31: 40 | AM31: 58 | AN31: 34 | AO31: 184 | AP31: 36.8 | AQ31: ممتاز | AR31: 51 | AS31: 35 | AT31: 58 | AU31: 35 | AV31: 179 | AW31: 35.8
A32: 30710011715275 | B32: 2007-10-01 | E32: 221 | F32: 90 | G32: =IF(H32="","",SUBTOTAL(3,$H$12:H32)) -> 21 | H32: عاطف محمد الكيلاني عكاشه | I32: 21 | J32: 1 | K32: 10 | L32: 2007 | M32: 0 | N32: 0 | O32: 9 | P32: 49 | Q32: 18 | R32: 52 | S32: 31 | T32: 150 | U32: 75 | V32: جيد جداً | W32: 44 | X32: 24 | Y32: 51 | Z32: 32 | AA32: 151 | AB32: 60.4 | AC32: جيد جداً | AD32: 46 | AE32: 28 | AF32: 51 | AG32: 40 | AH32: 165 | AI32: 33 | AJ32: جيد جداً | AK32: 48 | AL32: 36 | AM32: 55 | AN32: 32 | AO32: 171 | AP32: 34.2 | AQ32: ممتاز | AR32: 47 | AS32: 38 | AT32: 49 | AU32: 32 | AV32: 166 | AW32: 33.2
A33: 30704301701219 | B33: 2007-04-30 | E33: 222 | F33: 91 | G33: =IF(H33="","",SUBTOTAL(3,$H$12:H33)) -> 22 | H33: عبد الرحمن أحمد عبد الله أحمد يوسف | I33: 22 | J33: 30 | K33: 4 | L33: 2007 | M33: 1 | N33: 5 | O33: 9 | P33: 31 | Q33: 38 | R33: 32 | S33: 40 | T33: 141 | U33: 70.5 | V33: جيد | W33: 42 | X33: 24 | Y33: 42 | Z33: 30 | AA33: 138 | AB33: 55.2 | AC33: جيد | AD33: 30 | AE33: 40 | AF33: 40 | AG33: 38 | AH33: 148 | AI33: 29.6 | AJ33: جيد | AK33: 26 | AL33: 36 | AM33: 30 | AN33: 21 | AO33: 113 | AP33: 22.6 | AQ33: مقبول | AR33: 44 | AS33: 30 | AT33: 44 | AU33: 29 | AV33: 147 | AW33: 29.4
A34: 30704191700858 | B34: 2007-04-19 | E34: 223 | F34: 92 | G34: =IF(H34="","",SUBTOTAL(3,$H$12:H34)) -> 23 | H34: عبد الرحمن جمال الشناوي الحسيني | I34: 23 | J34: 19 | K34: 4 | L34: 2007 | M34: 12 | N34: 5 | O34: 9 | P34: 49 | Q34: 19 | R34: 51 | S34: 24 | T34: 143 | U34: 71.5 | V34: جيد | W34: 48 | X34: 26 | Y34: 51 | Z34: 23 | AA34: 148 | AB34: 59.2 | AC34: جيد | AD34: 55 | AE34: 38 | AF34: 57 | AG34: 38 | AH34: 188 | AI34: 37.6 | AJ34: ممتاز | AK34: 50 | AL34: 30 | AM34: 58 | AN34: 34 | AO34: 172 | AP34: 34.4 | AQ34: ممتاز | AR34: 51 | AS34: 37 | AT34: 52 | AU34: 37 | AV34: 177 | AW34: 35.4
A35: 30712061702436 | B35: 2007-12-06 | E35: 224 | F35: 93 | G35: =IF(H35="","",SUBTOTAL(3,$H$12:H35)) -> 24 | H35: عبد الرحمن عصام محمد بكر | I35: 24 | J35: 6 | K35: 12 | L35: 2007 | M35: 25 | N35: 9 | O35: 8 | P35: 56 | Q35: 39 | R35: 57 | S35: 39 | T35: 191 | U35: 95.5 | V35: ممتاز | W35: 56 | X35: 31 | Y35: 57 | Z35: 38 | AA35: 182 | AB35: 72.8 | AC35: ممتاز | AD35: 58 | AE35: 39 | AF35: 59 | AG35: 40 | AH35: 196 | AI35: 39.2 | AJ35: ممتاز | AK35: 55 | AL35: 40 | AM35: 57 | AN35: 38 | AO35: 190 | AP35: 38 | AQ35: ممتاز | AR35: 55 | AS35: 36 | AT35: 56 | AU35: 40 | AV35: 187 | AW35: 37.4
A36: 30712041701573 | B36: 2007-12-04 | E36: 225 | F36: 94 | G36: =IF(H36="","",SUBTOTAL(3,$H$12:H36)) -> 25 | H36: عبد الرحمن عماد محمد عبدالعليم فرج | I36: 25 | J36: 4 | K36: 12 | L36: 2007 | M36: 27 | N36: 9 | O36: 8 | P36: 56 | Q36: 39 | R36: 58 | S36: 37 | T36: 190 | U36: 95 | V36: ممتاز | W36: 58 | X36: 36 | Y36: 58 | Z36: 40 | AA36: 192 | AB36: 76.8 | AC36: ممتاز | AD36: 58 | AE36: 39 | AF36: 60 | AG36: 39 | AH36: 196 | AI36: 39.2 | AJ36: ممتاز | AK36: 57 | AL36: 34 | AM36: 57 | AN36: 40 | AO36: 188 | AP36: 37.6 | AQ36: ممتاز | AR36: 55 | AS36: 33 | AT36: 58 | AU36: 38 | AV36: 184 | AW36: 36.8
A37: 30706091701833 | B37: 2007-06-09 | E37: 226 | F37: 95 | G37: =IF(H37="","",SUBTOTAL(3,$H$12:H37)) -> 26 | H37: عبد الرحمن محمد أحمد عثمان | I37: 26 | J37: 9 | K37: 6 | L37: 2007 | M37: 22 | N37: 3 | O37: 9 | P37: 53 | Q37: 25 | R37: 52 | S37: 33 | T37: 163 | U37: 81.5 | V37: جيد جداً | W37: 44 | X37: 28 | Y37: 55 | Z37: 35 | AA37: 162 | AB37: 64.8 | AC37: جيد جداً | AD37: 58 | AE37: 30 | AF37: 57 | AG37: 36 | AH37: 181 | AI37: 36.2 | AJ37: ممتاز | AK37: 49 | AL37: 32 | AM37: 52 | AN37: 28 | AO37: 161 | AP37: 32.2 | AQ37: جيد جداً | AR37: 47 | AS37: 29 | AT37: 51 | AU37: 30 | AV37: 157 | AW37: 31.4
A38: 30709301705178 | B38: 2007-09-30 | E38: 227 | F38: 96 | G38: =IF(H38="","",SUBTOTAL(3,$H$12:H38)) -> 27 | H38: عبد العزيز محمد عبد العزيز حماد | I38: 27 | J38: 30 | K38: 9 | L38: 2007 | M38: 1 | N38: 0 | O38: 9 | P38: 59 | Q38: 38 | R38: 57 | S38: 37 | T38: 191 | U38: 95.5 | V38: ممتاز | W38: 56 | X38: 33 | Y38: 55 | Z38: 31 | AA38: 175 | AB38: 70 | AC38: ممتاز | AD38: 59 | AE38: 39 | AF38: 59 | AG38: 39 | AH38: 196 | AI38: 39.2 | AJ38: ممتاز | AK38: 56 | AL38: 36 | AM38: 55 | AN38: 38 | AO38: 185 | AP38: 37 | AQ38: ممتاز | AR38: 52 | AS38: 38 | AT38: 57 | AU38: 40 | AV38: 187 | AW38: 37.4
A39: 30712091701795 | B39: 2007-12-09 | E39: 228 | F39: 97 | G39: =IF(H39="","",SUBTOTAL(3,$H$12:H39)) -> 28 | H39: عبدالرحمن فتحي موسي عبد الدايم | I39: 28 | J39: 9 | K39: 12 | L39: 2007 | M39: 22 | N39: 9 | O39: 8 | P39: 52 | Q39: 32 | R39: 56 | S39: 28 | T39: 168 | U39: 84 | V39: جيد جداً | W39: 48 | X39: 32 | Y39: 49 | Z39: 27 | AA39: 156 | AB39: 62.4 | AC39: جيد جداً | AD39: 53 | AE39: 37 | AF39: 55 | AG39: 38 | AH39: 183 | AI39: 36.6 | AJ39: ممتاز | AK39: 47 | AL39: 40 | AM39: 54 | AN39: 34 | AO39: 175 | AP39: 35 | AQ39: ممتاز | AR39: 49 | AS39: 31 | AT39: 59 | AU39: 38 | AV39: 177 | AW39: 35.4
A40: 30707071701477 | B40: 2007-07-07 | E40: 229 | F40: 98 | G40: =IF(H40="","",SUBTOTAL(3,$H$12:H40)) -> 29 | H40: عصام محمد سمير فرج | I40: 29 | J40: 7 | K40: 7 | L40: 2007 | M40: 24 | N40: 2 | O40: 9 | P40: 55 | Q40: 37 | R40: 59 | S40: 38 | T40: 189 | U40: 94.5 | V40: ممتاز | W40: 56 | X40: 35 | Y40: 58 | Z40: 38 | AA40: 187 | AB40: 74.8 | AC40: ممتاز | AD40: 60 | AE40: 40 | AF40: 60 | AG40: 40 | AH40: 200 | AI40: 40 | AJ40: ممتاز | AK40: 57 | AL40: 36 | AM40: 58 | AN40: 38 | AO40: 189 | AP40: 37.8 | AQ40: ممتاز | AR40: 56 | AS40: 37 | AT40: 59 | AU40: 40 | AV40: 192 | AW40: 38.4
A41: 30708201704313 | B41: 2007-08-20 | E41: 230 | F41: 99 | G41: =IF(H41="","",SUBTOTAL(3,$H$12:H41)) -> 30 | H41: على محمد على عبد الجواد | I41: 30 | J41: 20 | K41: 8 | L41: 2007 | M41: 11 | N41: 1 | O41: 9 | P41: 50 | Q41: 6 | R41: 47 | S41: 13 | T41: 116 | U41: 58 | V41: مقبول | W41: 47 | X41: 19 | Y41: 46 | Z41: 16 | AA41: 128 | AB41: 51.2 | AC41: مقبول | AD41: 55 | AE41: 33 | AF41: 52 | AG41: 34 | AH41: 174 | AI41: 34.8 | AJ41: ممتاز | AK41: 49 | AL41: 8 | AM41: 33 | AN41: 20 | AO41: 110 | AP41: 22 | AQ41: مقبول | AR41: 39 | AS41: 16 | AT41: 44 | AU41: 30 | AV41: 129 | AW41: 25.8
A42: 30704291701738 | B42: 2007-04-29 | E42: 231 | F42: 100 | G42: =IF(H42="","",SUBTOTAL(3,$H$12:H42)) -> 31 | H42: عمار حاتم محمد رياض عمر | I42: 31 | J42: 29 | K42: 4 | L42: 2007 | M42: 2 | N42: 5 | O42: 9 | P42: 58 | Q42: 39 | R42: 58 | S42: 39 | T42: 194 | U42: 97 | V42: ممتاز | W42: 49 | X42: 30 | Y42: 45 | Z42: 38 | AA42: 162 | AB42: 64.8 | AC42: جيد جداً | AD42: 60 | AE42: 38 | AF42: 60 | AG42: 36 | AH42: 194 | AI42: 38.8 | AJ42: ممتاز | AK42: 59 | AL42: 34 | AM42: 56 | AN42: 40 | AO42: 189 | AP42: 37.8 | AQ42: ممتاز | AR42: 50 | AS42: 35 | AT42: 57 | AU42: 40 | AV42: 182 | AW42: 36.4
A43: 30705011707856 | B43: 2007-05-01 | E43: 232 | F43: 101 | G43: =IF(H43="","",SUBTOTAL(3,$H$12:H43)) -> 32 | H43: عمار علي علي رضوان الشحري | I43: 32 | J43: 1 | K43: 5 | L43: 2007 | M43: 0 | N43: 5 | O43: 9 | P43: 55 | Q43: 37 | R43: 52 | S43: 30 | T43: 174 | U43: 87 | V43: ممتاز | W43: 58 | X43: 36 | Y43: 60 | Z43: 39 | AA43: 193 | AB43: 77.2 | AC43: ممتاز | AD43: 54 | AE43: 34 | AF43: 53 | AG43: 37 | AH43: 178 | AI43: 35.6 | AJ43: ممتاز | AK43: 57 | AL43: 36 | AM43: 58 | AN43: 38 | AO43: 189 | AP43: 37.8 | AQ43: ممتاز | AR43: 56 | AS43: 37 | AT43: 59 | AU43: 39 | AV43: 191 | AW43: 38.2
A44: 30611091702634 | B44: 2006-11-09 | E44: 233 | F44: 102 | G44: =IF(H44="","",SUBTOTAL(3,$H$12:H44)) -> 33 | H44: عمر أمير عبد الحفيظ أحمد الطنطاوي | I44: 33 | J44: =DAY(B44) -> 9 | K44: =MONTH(B44) -> 11 | L44: =YEAR(B44) -> 2006 | M44: 22 | N44: 10 | O44: 9 | P44: 52 | Q44: 34 | R44: 52 | S44: 33 | T44: 171 | U44: 85.5 | V44: ممتاز | W44: 44 | X44: 31 | Y44: 53 | Z44: 34 | AA44: 162 | AB44: 64.8 | AC44: جيد جداً | AD44: 55 | AE44: 36 | AF44: 52 | AG44: 35 | AH44: 178 | AI44: 35.6 | AJ44: ممتاز | AK44: 57 | AL44: 40 | AM44: 52 | AN44: 40 | AO44: 189 | AP44: 37.8 | AQ44: ممتاز | AR44: 57 | AS44: 35 | AT44: 59 | AU44: 34 | AV44: 185 | AW44: 37
A45: 30710311701012 | B45: 2007-10-31 | E45: 234 | F45: 103 | G45: =IF(H45="","",SUBTOTAL(3,$H$12:H45)) -> 34 | H45: عمر محمد محمد عبد العزيز حماد | I45: =IF(OR($I$7=0,$H45=""),"",$I44+1) -> 34 | J45: 31 | K45: 10 | L45: 2007 | M45: 0 | N45: 11 | O45: 8 | P45: 59 | Q45: 33 | R45: 59 | S45: 34 | T45: 185 | U45: 92.5 | V45: ممتاز | W45: 60 | X45: 28 | Y45: 60 | Z45: 37 | AA45: 185 | AB45: 74 | AC45: ممتاز | AD45: 57 | AE45: 39 | AF45: 60 | AG45: 39 | AH45: 195 | AI45: 39 | AJ45: ممتاز | AK45: 52 | AL45: 38 | AM45: 58 | AN45: 38 | AO45: 186 | AP45: 37.2 | AQ45: ممتاز | AR45: 53 | AS45: 36 | AT45: 51 | AU45: 40 | AV45: 180 | AW45: 36
A46: 30710101703993 | B46: 2007-10-10 | E46: 235 | F46: 104 | G46: =IF(H46="","",SUBTOTAL(3,$H$12:H46)) -> 35 | H46: عمرو محمد إبراهيم محمد إبراهيم | I46: 35 | J46: 10 | K46: 10 | L46: 2007 | M46: 21 | N46: 11 | O46: 8 | P46: 45 | Q46: 24 | R46: 54 | S46: 21 | T46: 144 | U46: 72 | V46: جيد | W46: 49 | X46: 24 | Y46: 52 | Z46: 34 | AA46: 159 | AB46: =IF(AA46="غ","غ",AA46*80/200) -> 63.6 | AC46: جيد جداً | AD46: 48 | AE46: 29 | AF46: 52 | AG46: 33 | AH46: 162 | AI46: 32.4 | AJ46: جيد جداً | AK46: 48 | AL46: 30 | AM46: 44 | AN46: 32 | AO46: 154 | AP46: 30.8 | AQ46: جيد جداً | AR46: 52 | AS46: 33 | AT46: 49 | AU46: 39 | AV46: 173 | AW46: 34.6
A47: 30611291701152 | B47: 2006-11-29 | E47: 236 | F47: 105 | G47: =IF(H47="","",SUBTOTAL(3,$H$12:H47)) -> 36 | H47: فارس محمد عبد الله محمد هدهد | I47: 36 | J47: 29 | K47: 11 | L47: 2006 | M47: 2 | N47: 10 | O47: 9 | P47: 7 | Q47: صفر | R47: 7 | S47: 4 | T47: 18 | U47: 9 | V47: دون المستوى | W47: 7 | X47: 13 | Y47: غ | Z47: 6 | AA47: 26 | AB47: 10.4 | AC47: دون المستوى | AD47: 7 | AE47: 8 | AF47: 2 | AG47: 11 | AH47: 28 | AI47: 5.6 | AJ47: دون المستوى | AK47: 7 | AL47: صفر | AM47: غ | AN47: صفر | AO47: 7 | AP47: 1.4 | AQ47: دون المستوى | AR47: 7 | AS47: 9 | AT47: غ | AU47: 15 | AV47: 31 | AW47: 6.2
A48: 30705071702373 | B48: 2007-05-07 | E48: 237 | F48: 106 | G48: =IF(H48="","",SUBTOTAL(3,$H$12:H48)) -> 37 | H48: فتحى عادل فتحى عبدالكريم | I48: 37 | J48: 7 | K48: 5 | L48: 2007 | M48: 24 | N48: 4 | O48: 9 | P48: 57 | Q48: 30 | R48: 56 | S48: 32 | T48: 175 | U48: 87.5 | V48: ممتاز | W48: 56 | X48: 19 | Y48: 57 | Z48: 27 | AA48: 159 | AB48: 63.6 | AC48: جيد جداً | AD48: 50 | AE48: 33 | AF48: 58 | AG48: 37 | AH48: 178 | AI48: 35.6 | AJ48: ممتاز | AK48: 52 | AL48: 34 | AM48: 54 | AN48: 38 | AO48: 178 | AP48: 35.6 | AQ48: ممتاز | AR48: 50 | AS48: 36 | AT48: 53 | AU48: 40 | AV48: 179 | AW48: 35.8
A49: 30802011704712 | B49: 2008-02-01 | E49: 238 | F49: 107 | G49: =IF(H49="","",SUBTOTAL(3,$H$12:H49)) -> 38 | H49: فتحى عبد الكريم فتحى عبد الكريم يوسف | I49: 38 | J49: 1 | K49: 2 | L49: 2008 | M49: 0 | N49: 8 | O49: 8 | P49: 48 | Q49: 23 | R49: 53 | S49: 28 | T49: 152 | U49: 76 | V49: جيد جداً | W49: 52 | X49: 31 | Y49: 57 | Z49: 25 | AA49: 165 | AB49: 66 | AC49: جيد جداً | AD49: 51 | AE49: 33 | AF49: 56 | AG49: 33 | AH49: 173 | AI49: 34.6 | AJ49: ممتاز | AK49: 51 | AL49: 36 | AM49: 56 | AN49: 36 | AO49: 179 | AP49: 35.8 | AQ49: ممتاز | AR49: 47 | AS49: 40 | AT49: 48 | AU49: 40 | AV49: 175 | AW49: 35
A50: 30709111702636 | B50: 2007-09-11 | E50: 270 | F50: 32 | G50: =IF(H50="","",SUBTOTAL(3,$H$12:H50)) -> 39 | H50: فتحي أيمن فتحي محمد إبراهيم | I50: 39 | J50: 11 | K50: 9 | L50: 2007 | M50: 20 | N50: 0 | O50: 9 | P50: 56 | Q50: 39 | R50: 59 | S50: 40 | T50: 194 | U50: 97 | V50: ممتاز | W50: 59 | X50: 29 | Y50: 60 | Z50: 40 | AA50: 188 | AB50: 75.2 | AC50: ممتاز | AD50: 57 | AE50: 33 | AF50: 56 | AG50: 37 | AH50: 183 | AI50: 36.6 | AJ50: ممتاز | AK50: 57 | AL50: 40 | AM50: 58 | AN50: 40 | AO50: 195 | AP50: 39 | AQ50: ممتاز | AR50: 53 | AS50: 39 | AT50: 57 | AU50: 40 | AV50: 189 | AW50: 37.8
A51: 30701231701292 | B51: 2007-01-23 | E51: 271 | F51: 33 | G51: =IF(H51="","",SUBTOTAL(3,$H$12:H51)) -> 40 | H51: فرج محمود فرج مغاوري | I51: 40 | J51: 23 | K51: 1 | L51: 2007 | M51: 8 | N51: 8 | O51: 9 | P51: 55 | Q51: 26 | R51: 55 | S51: 29 | T51: 165 | U51: 82.5 | V51: جيد جداً | W51: 56 | X51: 30 | Y51: 53 | Z51: 25 | AA51: 164 | AB51: 65.6 | AC51: جيد جداً | AD51: 55 | AE51: 33 | AF51: 42 | AG51: 37 | AH51: 167 | AI51: 33.4 | AJ51: جيد جداً | AK51: 44 | AL51: 34 | AM51: 52 | AN51: 30 | AO51: 160 | AP51: 32 | AQ51: جيد جداً | AR51: 52 | AS51: 39 | AT51: 49 | AU51: 35 | AV51: 175 | AW51: 35
A52: 30610251704438 | B52: 2006-10-25 | E52: 272 | F52: 34 | G52: =IF(H52="","",SUBTOTAL(3,$H$12:H52)) -> 41 | H52: فهد محمد عبد الحليم سيد المرادي | I52: 41 | J52: 25 | K52: 10 | L52: 2006 | M52: 6 | N52: 11 | O52: 9 | P52: 7 | Q52: 2 | R52: 7 | S52: صفر | T52: 16 | U52: 8 | V52: دون المستوى | W52: 7 | X52: 26 | Y52: غ | Z52: 12 | AA52: 45 | AB52: 18 | AC52: دون المستوى | AD52: 7 | AE52: 29 | AF52: غ | AG52: 14 | AH52: 50 | AI52: 10 | AJ52: دون المستوى | AK52: 7 | AL52: 22 | AM52: 7 | AN52: 20 | AO52: 56 | AP52: 11.2 | AQ52: دون المستوى | AR52: 7 | AS52: 30 | AT52: 7 | AU52: 22 | AV52: 66 | AW52: 13.2
A53: 30708231701351 | B53: 2007-08-23 | E53: 273 | F53: 35 | G53: =IF(H53="","",SUBTOTAL(3,$H$12:H53)) -> 42 | H53: فهيم ياسر فهيم احمد مروان | I53: 42 | J53: 23 | K53: 8 | L53: 2007 | M53: 8 | N53: 1 | O53: 9 | P53: 50 | Q53: 28 | R53: 53 | S53: 34 | T53: 165 | U53: 82.5 | V53: جيد جداً | W53: 51 | X53: 29 | Y53: 53 | Z53: 33 | AA53: 166 | AB53: 66.4 | AC53: جيد جداً | AD53: 50 | AE53: 18 | AF53: 54 | AG53: 34 | AH53: 156 | AI53: 31.2 | AJ53: جيد جداً | AK53: 51 | AL53: 32 | AM53: 54 | AN53: 32 | AO53: 169 | AP53: 33.8 | AQ53: جيد جداً | AR53: 35 | AS53: 29 | AT53: 50 | AU53: 38 | AV53: 152 | AW53: 30.4
A54: 30712031701699 | B54: 2007-12-03 | E54: 274 | F54: 36 | G54: =IF(H54="","",SUBTOTAL(3,$H$12:H54)) -> 43 | H54: محمد ايهاب محمد الدسوقي | I54: 43 | J54: 3 | K54: 12 | L54: 2007 | M54: 28 | N54: 9 | O54: 8 | P54: 60 | Q54: 40 | R54: 60 | S54: 39 | T54: 199 | U54: 99.5 | V54: ممتاز | W54: 59 | X54: 36 | Y54: 60 | Z54: 39 | AA54: 194 | AB54: 77.6 | AC54: ممتاز | AD54: 60 | AE54: 40 | AF54: 60 | AG54: 40 | AH54: 200 | AI54: 40 | AJ54: ممتاز | AK54: 60 | AL54: 40 | AM54: 58 | AN54: 40 | AO54: 198 | AP54: 39.6 | AQ54: ممتاز | AR54: 60 | AS54: 40 | AT54: 60 | AU54: 40 | AV54: 200 | AW54: 40
A55: 30712281700256 | B55: 2007-12-28 | E55: 275 | F55: 37 | G55: =IF(H55="","",SUBTOTAL(3,$H$12:H55)) -> 44 | H55: محمد جمعة عبدالغفار محمد هدهد | I55: 44 | J55: 28 | K55: 12 | L55: 2007 | M55: 3 | N55: 9 | O55: 8 | P55: 41 | Q55: 24 | R55: 44 | S55: 22 | T55: 131 | U55: 65.5 | V55: جيد | W55: 47 | X55: 26 | Y55: 45 | Z55: 26 | AA55: 144 | AB55: 57.6 | AC55: جيد | AD55: 41 | AE55: 15 | AF55: 42 | AG55: 36 | AH55: 134 | AI55: 26.8 | AJ55: جيد | AK55: 47 | AL55: 28 | AM55: 50 | AN55: 14 | AO55: 139 | AP55: 27.8 | AQ55: جيد | AR55: 47 | AS55: 32 | AT55: 41 | AU55: 34 | AV55: 154 | AW55: 30.8
A56: 30707031701334 | B56: 2007-07-03 | E56: 276 | F56: 38 | G56: =IF(H56="","",SUBTOTAL(3,$H$12:H56)) -> 45 | H56: محمد حسام عبد المنعم السيد فرج | I56: 45 | J56: 3 | K56: 7 | L56: 2007 | M56: 28 | N56: 2 | O56: 9 | P56: 58 | Q56: 33 | R56: 60 | S56: 38 | T56: 189 | U56: 94.5 | V56: ممتاز | W56: 56 | X56: 29 | Y56: 57 | Z56: 38 | AA56: 180 | AB56: 72 | AC56: ممتاز | AD56: 59 | AE56: 37 | AF56: 60 | AG56: 40 | AH56: 196 | AI56: 39.2 | AJ56: ممتاز | AK56: 56 | AL56: 38 | AM56: 58 | AN56: 40 | AO56: 192 | AP56: 38.4 | AQ56: ممتاز | AR56: 53 | AS56: 36 | AT56: 58 | AU56: 40 | AV56: 187 | AW56: 37.4
A57: 30708251703911 | B57: 2007-08-25 | E57: 277 | F57: 39 | G57: =IF(H57="","",SUBTOTAL(3,$H$12:H57)) -> 46 | H57: محمد ماهر إبراهيم المرادي | I57: 46 | J57: 25 | K57: 8 | L57: 2007 | M57: 6 | N57: 1 | O57: 9 | P57: 53 | Q57: 38 | R57: 55 | S57: 35 | T57: 181 | U57: 90.5 | V57: ممتاز | W57: 55 | X57: 33 | Y57: 57 | Z57: 38 | AA57: 183 | AB57: 73.2 | AC57: ممتاز | AD57: 59 | AE57: 34 | AF57: 59 | AG57: 39 | AH57: 191 | AI57: 38.2 | AJ57: ممتاز | AK57: 55 | AL57: 38 | AM57: 57 | AN57: 40 | AO57: 190 | AP57: 38 | AQ57: ممتاز | AR57: 52 | AS57: 37 | AT57: 56 | AU57: 38 | AV57: 183 | AW57: 36.6
A58: 30701011708415 | B58: 2007-01-01 | E58: 278 | F58: 40 | G58: =IF(H58="","",SUBTOTAL(3,$H$12:H58)) -> 47 | H58: محمد ماهر محمد سعيد السيد | I58: 47 | J58: 1 | K58: 1 | L58: 2007 | M58: 0 | N58: 9 | O58: 9 | P58: 54 | Q58: 37 | R58: 54 | S58: 38 | T58: 183 | U58: 91.5 | V58: ممتاز | W58: 46 | X58: 25 | Y58: 58 | Z58: 33 | AA58: 162 | AB58: 64.8 | AC58: جيد جداً | AD58: 58 | AE58: 35 | AF58: 60 | AG58: 39 | AH58: 192 | AI58: 38.4 | AJ58: ممتاز | AK58: 57 | AL58: 32 | AM58: 52 | AN58: 40 | AO58: 181 | AP58: 36.2 | AQ58: ممتاز | AR58: 46 | AS58: 36 | AT58: 52 | AU58: 40 | AV58: 174 | AW58: 34.8
A59: 30712111700936 | B59: 2007-12-11 | E59: 279 | F59: 41 | G59: =IF(H59="","",SUBTOTAL(3,$H$12:H59)) -> 48 | H59: محمود رفعت عبدالرشيد السيد عامر | I59: 48 | J59: 11 | K59: 12 | L59: 2007 | M59: 20 | N59: 9 | O59: 8 | P59: 56 | Q59: 35 | R59: 57 | S59: 38 | T59: 186 | U59: 93 | V59: ممتاز | W59: 57 | X59: 33 | Y59: 56 | Z59: 40 | AA59: 186 | AB59: 74.4 | AC59: ممتاز | AD59: 59 | AE59: 39 | AF59: 60 | AG59: 38 | AH59: 196 | AI59: 39.2 | AJ59: ممتاز | AK59: 58 | AL59: 38 | AM59: 58 | AN59: 40 | AO59: 194 | AP59: 38.8 | AQ59: ممتاز | AR59: 52 | AS59: 36 | AT59: 57 | AU59: 40 | AV59: 185 | AW59: 37
A60: 30705081702339 | B60: 2007-05-08 | E60: 280 | F60: 42 | G60: =IF(H60="","",SUBTOTAL(3,$H$12:H60)) -> 49 | H60: محمود عاطف عبدالرازق قطب | I60: 49 | J60: 8 | K60: 5 | L60: 2007 | M60: 23 | N60: 4 | O60: 9 | P60: 40 | Q60: 13 | R60: 46 | S60: 12 | T60: 111 | U60: 55.5 | V60: مقبول | W60: 36 | X60: 21 | Y60: 37 | Z60: 24 | AA60: 118 | AB60: 47.2 | AC60: مقبول | AD60: 37 | AE60: 16 | AF60: 37 | AG60: 24 | AH60: 114 | AI60: 22.8 | AJ60: مقبول | AK60: 36 | AL60: 10 | AM60: 44 | AN60: 24 | AO60: 114 | AP60: 22.8 | AQ60: مقبول | AR60: 43 | AS60: 29 | AT60: 44 | AU60: 26 | AV60: 142 | AW60: 28.4
A61: 30705081702355 | B61: 2007-05-08 | E61: 281 | F61: 43 | G61: =IF(H61="","",SUBTOTAL(3,$H$12:H61)) -> 50 | H61: محمود عماد عبد الستار محمد ابراهيم | I61: 50 | J61: 8 | K61: 5 | L61: 2007 | M61: 23 | N61: 4 | O61: 9 | P61: 58 | Q61: 39 | R61: 58 | S61: 35 | T61: 190 | U61: 95 | V61: ممتاز | W61: 57 | X61: 26 | Y61: 57 | Z61: 32 | AA61: 172 | AB61: 68.8 | AC61: ممتاز | AD61: 59 | AE61: 32 | AF61: 60 | AG61: 40 | AH61: 191 | AI61: 38.2 | AJ61: ممتاز | AK61: 56 | AL61: 40 | AM61: 55 | AN61: 40 | AO61: 191 | AP61: 38.2 | AQ61: ممتاز | AR61: 59 | AS61: 36 | AT61: 58 | AU61: 38 | AV61: 191 | AW61: 38.2
A62: 30702211700911 | B62: 2007-02-21 | E62: 282 | F62: 44 | G62: =IF(H62="","",SUBTOTAL(3,$H$12:H62)) -> 51 | H62: مصطفي عاطف محمد أحمد | I62: 51 | J62: 21 | K62: 2 | L62: 2007 | M62: 10 | N62: 7 | O62: 9 | P62: 52 | Q62: 30 | R62: 53 | S62: 32 | T62: 167 | U62: 83.5 | V62: جيد جداً | W62: 54 | X62: 22 | Y62: 54 | Z62: 35 | AA62: 165 | AB62: 66 | AC62: جيد جداً | AD62: 57 | AE62: 36 | AF62: 53 | AG62: 35 | AH62: 181 | AI62: 36.2 | AJ62: ممتاز | AK62: 53 | AL62: 40 | AM62: 54 | AN62: 36 | AO62: 183 | AP62: 36.6 | AQ62: ممتاز | AR62: 58 | AS62: 37 | AT62: 58 | AU62: 39 | AV62: 192 | AW62: 38.4
A63: 30712101703112 | B63: 2007-12-10 | E63: 283 | F63: 45 | G63: =IF(H63="","",SUBTOTAL(3,$H$12:H63)) -> 52 | H63: معتز إيهاب عبدالمطلب على | I63: 52 | J63: 10 | K63: 12 | L63: 2007 | M63: 21 | N63: 9 | O63: 8 | P63: 58 | Q63: 40 | R63: 59 | S63: 38 | T63: 195 | U63: 97.5 | V63: ممتاز | W63: 57 | X63: 33 | Y63: 56 | Z63: 39 | AA63: 185 | AB63: 74 | AC63: ممتاز | AD63: 59 | AE63: 40 | AF63: 60 | AG63: 40 | AH63: 199 | AI63: 39.8 | AJ63: ممتاز | AK63: 59 | AL63: 40 | AM63: 59 | AN63: 38 | AO63: 196 | AP63: 39.2 | AQ63: ممتاز | AR63: 54 | AS63: 35 | AT63: 56 | AU63: 40 | AV63: 185 | AW63: 37
A64: 30709231703156 | B64: 2007-09-23 | E64: 284 | F64: 46 | G64: =IF(H64="","",SUBTOTAL(3,$H$12:H64)) -> 53 | H64: مهند أمير سامي عبد المطلب درغام | I64: 53 | J64: 23 | K64: 9 | L64: 2007 | M64: 8 | N64: 0 | O64: 9 | P64: 55 | Q64: 35 | R64: 53 | S64: 37 | T64: 180 | U64: 90 | V64: ممتاز | W64: 57 | X64: 28 | Y64: 55 | Z64: 35 | AA64: 175 | AB64: 70 | AC64: ممتاز | AD64: 55 | AE64: 24 | AF64: 55 | AG64: 34 | AH64: 168 | AI64: 33.6 | AJ64: جيد جداً | AK64: 56 | AL64: 38 | AM64: 52 | AN64: 40 | AO64: 186 | AP64: 37.2 | AQ64: ممتاز | AR64: 54 | AS64: 36 | AT64: 58 | AU64: 34 | AV64: 182 | AW64: 36.4
A65: 30709161703757 | B65: 2007-09-16 | E65: 285 | F65: 47 | G65: =IF(H65="","",SUBTOTAL(3,$H$12:H65)) -> 54 | H65: يوسف ماهر محمود عبدالعاطي محمد | I65: 54 | J65: 16 | K65: 9 | L65: 2007 | M65: 15 | N65: 0 | O65: 9 | P65: 55 | Q65: 36 | R65: 58 | S65: 35 | T65: 184 | U65: 92 | V65: ممتاز | W65: 54 | X65: 27 | Y65: 55 | Z65: 35 | AA65: 171 | AB65: 68.4 | AC65: ممتاز | AD65: 58 | AE65: 37 | AF65: 55 | AG65: 38 | AH65: 188 | AI65: 37.6 | AJ65: ممتاز | AK65: 53 | AL65: 34 | AM65: 55 | AN65: 40 | AO65: 182 | AP65: 36.4 | AQ65: ممتاز | AR65: 60 | AS65: 35 | AT65: 58 | AU65: 40 | AV65: 193 | AW65: 38.6
A66: 30701011720539 | B66: 2007-01-01 | E66: 286 | F66: 48 | G66: =IF(H66="","",SUBTOTAL(3,$H$12:H66)) -> 55 | H66: يوسف محمد أحمد محمد وافي | I66: 55 | J66: 1 | K66: 1 | L66: 2007 | M66: 0 | N66: 9 | O66: 9 | P66: 49 | Q66: 24 | R66: 48 | S66: 20 | T66: 141 | U66: 70.5 | V66: جيد | W66: 42 | X66: 15 | Y66: 46 | Z66: 27 | AA66: 130 | AB66: 52 | AC66: جيد | AD66: 50 | AE66: 18 | AF66: 46 | AG66: 28 | AH66: 142 | AI66: 28.4 | AJ66: جيد | AK66: 49 | AL66: 26 | AM66: 53 | AN66: 38 | AO66: 166 | AP66: 33.2 | AQ66: جيد جداً | AR66: 49 | AS66: 29 | AT66: 48 | AU66: 32 | AV66: 158 | AW66: 31.6
A67: 30703061701252 | B67: 2007-03-06 | E67: 287 | F67: 49 | G67: =IF(H67="","",SUBTOTAL(3,$H$12:H67)) -> 56 | H67: يوسف محمد جبر أحمد جبر | I67: 56 | J67: 6 | K67: 3 | L67: 2007 | M67: 25 | N67: 6 | O67: 9 | P67: 51 | Q67: 31 | R67: 52 | S67: 33 | T67: 167 | U67: 83.5 | V67: جيد جداً | W67: 53 | X67: 27 | Y67: 53 | Z67: 29 | AA67: 162 | AB67: 64.8 | AC67: جيد جداً | AD67: 54 | AE67: 33 | AF67: 57 | AG67: 33 | AH67: 177 | AI67: 35.4 | AJ67: ممتاز | AK67: 56 | AL67: 34 | AM67: 51 | AN67: 40 | AO67: 181 | AP67: 36.2 | AQ67: ممتاز | AR67: 49 | AS67: 26 | AT67: 46 | AU67: 36 | AV67: 157 | AW67: 31.4
A68: 30704151702416 | B68: 2007-04-15 | E68: 288 | F68: 50 | G68: =IF(H68="","",SUBTOTAL(3,$H$12:H68)) -> 57 | H68: يوسف محمد عبد الحميد هدهد | I68: 57 | J68: 15 | K68: 4 | L68: 2007 | M68: 16 | N68: 5 | O68: 9 | P68: 54 | Q68: 32 | R68: 51 | S68: 25 | T68: 162 | U68: 81 | V68: جيد جداً | W68: 52 | X68: 23 | Y68: 53 | Z68: 28 | AA68: 156 | AB68: 62.4 | AC68: جيد جداً | AD68: 47 | AE68: 28 | AF68: 51 | AG68: 38 | AH68: 164 | AI68: 32.8 | AJ68: جيد جداً | AK68: 50 | AL68: 22 | AM68: 50 | AN68: 36 | AO68: 158 | AP68: 31.6 | AQ68: جيد جداً | AR68: 43 | AS68: 24 | AT68: 46 | AU68: 30 | AV68: 143 | AW68: 28.6
A69: 30709251704752 | B69: 2007-09-25 | E69: 289 | F69: 51 | G69: =IF(H69="","",SUBTOTAL(3,$H$12:H69)) -> 58 | H69: يوسف محمد عبد السميع بكر | I69: 58 | J69: 25 | K69: 9 | L69: 2007 | M69: 6 | N69: 0 | O69: 9 | P69: 51 | Q69: 36 | R69: 50 | S69: 29 | T69: 166 | U69: 83 | V69: جيد جداً | W69: 46 | X69: 17 | Y69: 54 | Z69: 36 | AA69: 153 | AB69: 61.2 | AC69: جيد جداً | AD69: 54 | AE69: 31 | AF69: 55 | AG69: 36 | AH69: 176 | AI69: 35.2 | AJ69: ممتاز | AK69: 50 | AL69: 29 | AM69: 50 | AN69: 36 | AO69: 165 | AP69: 33 | AQ69: جيد جداً | AR69: 51 | AS69: 30 | AT69: 46 | AU69: 26 | AV69: 153 | AW69: 30.6
A70: 30701011720512 | B70: 2007-01-01 | E70: 290 | F70: 52 | G70: =IF(H70="","",SUBTOTAL(3,$H$12:H70)) -> 59 | H70: يوسف محمد كمال الصادق فرج | I70: 59 | J70: 1 | K70: 1 | L70: 2007 | M70: 0 | N70: 9 | O70: 9 | P70: 14 | Q70: 23 | R70: 27 | S70: 28 | T70: 92 | U70: 46 | V70: دون المستوى | W70: 25 | X70: 24 | Y70: 40 | Z70: 33 | AA70: 122 | AB70: 48.8 | AC70: مقبول | AD70: 12 | AE70: 18 | AF70: 40 | AG70: 22 | AH70: 92 | AI70: 18.4 | AJ70: دون المستوى | AK70: 26 | AL70: 30 | AM70: 26 | AN70: 25 | AO70: 107 | AP70: 21.4 | AQ70: مقبول | AR70: 44 | AS70: 26 | AT70: 44 | AU70: 28 | AV70: 142 | AW70: 28.4
A71: 30708211701738 | B71: 2007-08-21 | E71: 291 | F71: 53 | G71: =IF(H71="","",SUBTOTAL(3,$H$12:H71)) -> 60 | H71: يوسف محمود عبد الموجود السيد سيد أحمد | I71: 60 | J71: 21 | K71: 8 | L71: 2007 | M71: 10 | N71: 1 | O71: 9 | P71: 41 | Q71: 9 | R71: 43 | S71: 8 | T71: 101 | U71: 50.5 | V71: دون المستوى | W71: 37 | X71: 29 | Y71: 46 | Z71: 20 | AA71: 132 | AB71: 52.8 | AC71: جيد | AD71: 38 | AE71: 14 | AF71: 35 | AG71: 22 | AH71: 109 | AI71: 21.8 | AJ71: مقبول | AK71: 27 | AL71: 8 | AM71: 42 | AN71: 20 | AO71: 97 | AP71: 19.4 | AQ71: دون المستوى | AR71: 44 | AS71: 35 | AT71: 46 | AU71: 27 | AV71: 152 | AW71: 30.4
A72: 30707151702946 | B72: 2007-07-15 | E72: 292 | F72: 54 | G72: =IF(H72="","",SUBTOTAL(3,$H$12:H72)) -> 61 | H72: اروى عزب عبد المولى عزب خليل | I72: 61 | J72: 15 | K72: 7 | L72: 2007 | M72: 16 | N72: 2 | O72: 9 | P72: 51 | Q72: 32 | R72: 57 | S72: 39 | T72: 179 | U72: 89.5 | V72: ممتاز | W72: 56 | X72: 27 | Y72: 56 | Z72: 33 | AA72: 172 | AB72: 68.8 | AC72: ممتاز | AD72: 52 | AE72: 30 | AF72: 51 | AG72: 33 | AH72: 166 | AI72: 33.2 | AJ72: جيد جداً | AK72: 54 | AL72: 33 | AM72: 54 | AN72: 26 | AO72: 167 | AP72: 33.4 | AQ72: جيد جداً | AR72: 44 | AS72: 27 | AT72: 51 | AU72: 32 | AV72: 154 | AW72: 30.8
A73: 30708111701943 | B73: 2007-08-11 | E73: 293 | F73: 55 | G73: =IF(H73="","",SUBTOTAL(3,$H$12:H73)) -> 62 | H73: إسراء جمال محمد الخضري | I73: 62 | J73: 11 | K73: 8 | L73: 2007 | M73: 20 | N73: 1 | O73: 9 | P73: 55 | Q73: 30 | R73: 52 | S73: 26 | T73: 163 | U73: 81.5 | V73: جيد جداً | W73: 56 | X73: 21 | Y73: 53 | Z73: 28 | AA73: 158 | AB73: 63.2 | AC73: جيد جداً | AD73: 56 | AE73: 31 | AF73: 56 | AG73: 33 | AH73: 176 | AI73: 35.2 | AJ73: ممتاز | AK73: 57 | AL73: 30 | AM73: 52 | AN73: 38 | AO73: 177 | AP73: 35.4 | AQ73: ممتاز | AR73: 52 | AS73: 35 | AT73: 57 | AU73: 33 | AV73: 177 | AW73: 35.4
A74: 30708181703609 | B74: 2007-08-18 | E74: 294 | F74: 56 | G74: =IF(H74="","",SUBTOTAL(3,$H$12:H74)) -> 63 | H74: آلاء أشرف محمود السيد عبد الرحمن | I74: 63 | J74: 18 | K74: 8 | L74: 2007 | M74: 13 | N74: 1 | O74: 9 | P74: 59 | Q74: 39 | R74: 58 | S74: 39 | T74: 195 | U74: 97.5 | V74: ممتاز | W74: 57 | X74: 27 | Y74: 58 | Z74: 37 | AA74: 179 | AB74: 71.6 | AC74: ممتاز | AD74: 59 | AE74: 38 | AF74: 60 | AG74: 39 | AH74: 196 | AI74: 39.2 | AJ74: ممتاز | AK74: 58 | AL74: 27 | AM74: 56 | AN74: 40 | AO74: 181 | AP74: 36.2 | AQ74: ممتاز | AR74: 53 | AS74: 33 | AT74: 55 | AU74: 34 | AV74: 175 | AW74: 35
A75: 30708011710244 | B75: 2007-08-01 | E75: 295 | F75: 57 | G75: =IF(H75="","",SUBTOTAL(3,$H$12:H75)) -> 64 | H75: آلاء محمد عبد اللطيف السيد عطوه | I75: 64 | J75: 1 | K75: 8 | L75: 2007 | M75: 0 | N75: 2 | O75: 9 | P75: 43 | Q75: 21 | R75: 43 | S75: 9 | T75: 116 | U75: 58 | V75: دون المستوى | W75: 43 | X75: 32 | Y75: 43 | Z75: 23 | AA75: 141 | AB75: 56.4 | AC75: جيد | AD75: 35 | AE75: 36 | AF75: 39 | AG75: 16 | AH75: 126 | AI75: 25.2 | AJ75: مقبول | AK75: 30 | AL75: 36 | AM75: 36 | AN75: 20 | AO75: 122 | AP75: 24.4 | AQ75: مقبول | AR75: 33 | AS75: 27 | AT75: 40 | AU75: 23 | AV75: 123 | AW75: 24.6
A76: 30706251701967 | B76: 2007-06-25 | E76: 296 | F76: 58 | G76: =IF(H76="","",SUBTOTAL(3,$H$12:H76)) -> 65 | H76: ايثار حمدي عبد الستار علي فرج | I76: 65 | J76: =DAY(B76) -> 25 | K76: =MONTH(B76) -> 6 | L76: =YEAR(B76) -> 2007 | M76: 6 | N76: 3 | O76: 9 | P76: 44 | Q76: 20 | R76: 47 | S76: 18 | T76: 129 | U76: 64.5 | V76: مقبول | W76: 53 | X76: 15 | Y76: 51 | Z76: 28 | AA76: 147 | AB76: 58.8 | AC76: جيد | AD76: 46 | AE76: 22 | AF76: 44 | AG76: 26 | AH76: 138 | AI76: 27.6 | AJ76: جيد | AK76: 51 | AL76: 14 | AM76: 44 | AN76: 26 | AO76: 135 | AP76: 27 | AQ76: جيد | AR76: 47 | AS76: 27 | AT76: 47 | AU76: 29 | AV76: 150 | AW76: 30
A77: 30707141702964 | B77: =TEXT(LEFT(A77,7)+17000000,"####-##-##")+0 -> 2007-07-14 | E77: 297 | F77: 59 | G77: =IF(H77="","",SUBTOTAL(3,$H$12:H77)) -> 66 | H77: آيه إيهاب عبد الله إبراهيم عامر | I77: =IF(OR($I$7=0,$H77=""),"",$I76+1) -> 66 | J77: 14 | K77: 7 | L77: 2007 | M77: =DATEDIF(DATE(L77,K77,J77),$M$11,"md") -> 17 | N77: =DATEDIF(DATE(L77,K77,J77),$M$11,"ym") -> 2 | O77: =DATEDIF(DATE(L77,K77,J77),$M$11,"y") -> 9 | P77: 59 | Q77: 40 | R77: 60 | S77: 39 | T77: 198 | U77: =IF(T77="غ","غ",T77*100/200) -> 99 | V77: =IF(OR(U77="",S77=""),"",IF(OR(S77<12,S77="غ",U77="غ"),"دون المستوى",IF(U77>=85,"ممتاز",IF(U77>=75,"جيد جداً",IF(U77>=65,"جيد",IF(U77>=50,"مقبول",IF(OR(U77<50,U77="غ"),"دون المستوى"))))))) -> ممتاز | W77: 57 | X77: 34 | Y77: 60 | Z77: 40 | AA77: =IF(AND(W77="غ",X77="غ",Y77="غ",Z77="غ"),"غ",SUM(W77:Z77)) -> 191 | AB77: =IF(AA77="غ","غ",AA77*80/200) -> 76.4 | AC77: =IF(OR(AB77="",Z77=""),"",IF(OR(Z77<12,Z77="غ",AB77="غ"),"دون المستوى",IF(AB77>=68,"ممتاز",IF(AB77>=60,"جيد جداً",IF(AB77>=52,"جيد",IF(AB77>=40,"مقبول",IF(OR(AB77<40,AB77="غ"),"دون المستوى"))))))) -> ممتاز | AD77: 60 | AE77: 38 | AF77: 60 | AG77: 40 | AH77: =IF(AND(AD77="غ",AE77="غ",AF77="غ",AG77="غ"),"غ",SUM(AD77:AG77)) -> 198 | AI77: =IF(AH77="غ","غ",AH77*40/200) -> 39.6 | AJ77: =IF(OR(AI77="",AG77=""),"",IF(OR(AG77<12,AG77="غ",AI77="غ"),"دون المستوى",IF(AI77>=34,"ممتاز",IF(AI77>=30,"جيد جداً",IF(AI77>=26,"جيد",IF(AI77>=20,"مقبول",IF(OR(AI77<20,AI77="غ"),"دون المستوى"))))))) -> ممتاز | AK77: 58 | AL77: 40 | AM77: 56 | AN77: 40 | AO77: =IF(AND(AK77="غ",AL77="غ",AM77="غ",AN77="غ"),"غ",SUM(AK77:AN77)) -> 194 | AP77: 38.8 | AQ77: =IF(OR(AP77="",AN77=""),"",IF(OR(AN77<12,AN77="غ",AP77="غ"),"دون المستوى",IF(AP77>=34,"ممتاز",IF(AP77>=30,"جيد جداً",IF(AP77>=26,"جيد",IF(AP77>=20,"مقبول",IF(OR(AP77<20,AP77="غ"),"دون المستوى"))))))) -> ممتاز | AR77: 59 | AS77: 37 | AT77: 58 | AU77: 40 | AV77: =IF(AND(AR77="غ",AS77="غ",AT77="غ",AU77="غ"),"غ",SUM(AR77:AU77)) -> 194 | AW77: =IF(AV77="غ","غ",AV77*40/200) -> 38.8
A78: 30705111701707 | B78: 2007-05-11 | E78: 298 | F78: 60 | G78: =IF(H78="","",SUBTOTAL(3,$H$12:H78)) -> 67 | H78: آيه عبد الحميد علي بكر | I78: 67 | J78: 11 | K78: 5 | L78: 2007 | M78: 20 | N78: 4 | O78: 9 | P78: 60 | Q78: 40 | R78: 59 | S78: 39 | T78: 198 | U78: 99 | V78: ممتاز | W78: 57 | X78: 31 | Y78: 57 | Z78: 40 | AA78: 185 | AB78: 74 | AC78: ممتاز | AD78: 59 | AE78: 40 | AF78: 57 | AG78: 38 | AH78: 194 | AI78: 38.8 | AJ78: ممتاز | AK78: 58 | AL78: 40 | AM78: 58 | AN78: 40 | AO78: 196 | AP78: =IF(AO78="غ","غ",AO78*40/200) -> 39.2 | AQ78: ممتاز | AR78: 54 | AS78: 34 | AT78: 58 | AU78: 40 | AV78: 186 | AW78: 37.2
A79: 30706011702303 | B79: 2007-06-01 | E79: 299 | F79: 61 | G79: =IF(H79="","",SUBTOTAL(3,$H$12:H79)) -> 68 | H79: بسملة محمد فوزى صلاح الدين عامر | I79: 68 | J79: 1 | K79: 6 | L79: 2007 | M79: 0 | N79: 4 | O79: 9 | P79: 54 | Q79: 38 | R79: 56 | S79: 34 | T79: 182 | U79: 91 | V79: ممتاز | W79: 49 | X79: 25 | Y79: 51 | Z79: 35 | AA79: 160 | AB79: 64 | AC79: جيد جداً | AD79: 58 | AE79: 34 | AF79: 59 | AG79: 38 | AH79: 189 | AI79: 37.8 | AJ79: ممتاز | AK79: 52 | AL79: 29 | AM79: 52 | AN79: 40 | AO79: 173 | AP79: 34.6 | AQ79: ممتاز | AR79: 46 | AS79: 34 | AT79: 56 | AU79: 39 | AV79: 175 | AW79: 35
A80: 30712051701849 | B80: 2007-12-05 | E80: 300 | F80: 62 | G80: =IF(H80="","",SUBTOTAL(3,$H$12:H80)) -> 69 | H80: جنى عبد الله حسن عبد الله ابراهيم | I80: 69 | J80: 5 | K80: 12 | L80: 2007 | M80: 26 | N80: 9 | O80: 8 | P80: 59 | Q80: 38 | R80: 59 | S80: 37 | T80: 193 | U80: 96.5 | V80: ممتاز | W80: 57 | X80: 35 | Y80: 55 | Z80: 39 | AA80: 186 | AB80: 74.4 | AC80: ممتاز | AD80: 59 | AE80: 37 | AF80: 60 | AG80: 40 | AH80: 196 | AI80: 39.2 | AJ80: ممتاز | AK80: 59 | AL80: 39 | AM80: 59 | AN80: 40 | AO80: 197 | AP80: 39.4 | AQ80: ممتاز | AR80: 57 | AS80: 39 | AT80: 53 | AU80: 40 | AV80: 189 | AW80: 37.8
A81: 30801111701943 | B81: 2008-01-11 | E81: 301 | F81: 63 | G81: =IF(H81="","",SUBTOTAL(3,$H$12:H81)) -> 70 | H81: حبيبة هشام ابراهيم علي | I81: 70 | J81: 11 | K81: 1 | L81: 2008 | M81: 20 | N81: 8 | O81: 8 | P81: 57 | Q81: 40 | R81: 59 | S81: 34 | T81: =IF(AND(P81="غ",Q81="غ",R81="غ",S81="غ"),"غ",SUM(P81:S81)) -> 190 | U81: 95 | V81: ممتاز | W81: 57 | X81: 34 | Y81: 54 | Z81: 33 | AA81: 178 | AB81: 71.2 | AC81: ممتاز | AD81: 60 | AE81: 39 | AF81: 60 | AG81: 40 | AH81: 199 | AI81: 39.8 | AJ81: ممتاز | AK81: 56 | AL81: 38 | AM81: 59 | AN81: 40 | AO81: 193 | AP81: 38.6 | AQ81: ممتاز | AR81: 57 | AS81: 36 | AT81: 56 | AU81: 39 | AV81: 188 | AW81: 37.6
A82: 30706281701147 | B82: 2007-06-28 | E82: 302 | F82: 64 | G82: =IF(H82="","",SUBTOTAL(3,$H$12:H82)) -> 71 | H82: حبيبه جمال إمام محمد المرادي | I82: 71 | J82: 28 | K82: 6 | L82: 2007 | M82: 3 | N82: 3 | O82: 9 | P82: 56 | Q82: 31 | R82: 58 | S82: 33 | T82: 178 | U82: 89 | V82: ممتاز | W82: 54 | X82: 16 | Y82: 45 | Z82: 19 | AA82: 134 | AB82: 53.6 | AC82: جيد | AD82: 57 | AE82: 36 | AF82: 57 | AG82: 36 | AH82: 186 | AI82: 37.2 | AJ82: ممتاز | AK82: 55 | AL82: 38 | AM82: 58 | AN82: 38 | AO82: 189 | AP82: 37.8 | AQ82: ممتاز | AR82: 52 | AS82: 33 | AT82: 51 | AU82: 37 | AV82: 173 | AW82: 34.6
A83: 30710011713205 | B83: 2007-10-01 | E83: 303 | F83: 65 | G83: =IF(H83="","",SUBTOTAL(3,$H$12:H83)) -> 72 | H83: حبيبه صلاح الدين أحمد عبد الوهاب حماد | I83: 72 | J83: 1 | K83: 10 | L83: 2007 | M83: 0 | N83: 0 | O83: 9 | P83: 58 | Q83: 33 | R83: 58 | S83: 35 | T83: 184 | U83: 92 | V83: ممتاز | W83: 55 | X83: 25 | Y83: 56 | Z83: 28 | AA83: 164 | AB83: 65.6 | AC83: جيد جداً | AD83: 57 | AE83: 36 | AF83: 57 | AG83: 38 | AH83: 188 | AI83: 37.6 | AJ83: ممتاز | AK83: 50 | AL83: 36 | AM83: 55 | AN83: 36 | AO83: 177 | AP83: 35.4 | AQ83: ممتاز | AR83: 53 | AS83: 36 | AT83: 53 | AU83: 38 | AV83: 180 | AW83: 36
A84: 30709090110687 | B84: 2007-09-09 | E84: 304 | F84: 66 | G84: =IF(H84="","",SUBTOTAL(3,$H$12:H84)) -> 73 | H84: حبيبه محمد عبد الله مرسي | I84: 73 | J84: 9 | K84: 9 | L84: 2007 | M84: 22 | N84: 0 | O84: 9 | P84: 50 | Q84: 36 | R84: 54 | S84: 33 | T84: 173 | U84: 86.5 | V84: ممتاز | W84: 46 | X84: 21 | Y84: 50 | Z84: 37 | AA84: 154 | AB84: 61.6 | AC84: جيد جداً | AD84: 56 | AE84: 26 | AF84: 54 | AG84: 34 | AH84: 170 | AI84: 34 | AJ84: ممتاز | AK84: 56 | AL84: 28 | AM84: 52 | AN84: 38 | AO84: 174 | AP84: 34.8 | AQ84: ممتاز | AR84: 50 | AS84: 31 | AT84: 45 | AU84: 33 | AV84: 159 | AW84: 31.8
A85: 30611231700866 | B85: 2006-11-23 | E85: 305 | F85: 67 | G85: =IF(H85="","",SUBTOTAL(3,$H$12:H85)) -> 74 | H85: دعاء ياسر عبد الرحيم علي شعلان | I85: 74 | J85: 23 | K85: 11 | L85: 2006 | M85: 8 | N85: 10 | O85: 9 | P85: 59 | Q85: 40 | R85: 59 | S85: 40 | T85: 198 | U85: 99 | V85: ممتاز | W85: 60 | X85: 35 | Y85: 59 | Z85: 40 | AA85: 194 | AB85: 77.6 | AC85: ممتاز | AD85: 60 | AE85: 37 | AF85: 60 | AG85: 40 | AH85: 197 | AI85: 39.4 | AJ85: ممتاز | AK85: 58 | AL85: 34 | AM85: 59 | AN85: 40 | AO85: 191 | AP85: 38.2 | AQ85: ممتاز | AR85: 57 | AS85: 37 | AT85: 56 | AU85: 38 | AV85: 188 | AW85: 37.6
A86: 30707121703263 | B86: 2007-07-12 | E86: 306 | F86: 68 | G86: =IF(H86="","",SUBTOTAL(3,$H$12:H86)) -> 75 | H86: دنيا عبد الكريم عبد الله عبد الكريم يوسف | I86: 75 | J86: 12 | K86: 7 | L86: 2007 | M86: 19 | N86: 2 | O86: 9 | P86: 59 | Q86: 37 | R86: 60 | S86: 39 | T86: 195 | U86: 97.5 | V86: ممتاز | W86: 56 | X86: 29 | Y86: 52 | Z86: 37 | AA86: 174 | AB86: 69.6 | AC86: ممتاز | AD86: 60 | AE86: 34 | AF86: 60 | AG86: 40 | AH86: 194 | AI86: 38.8 | AJ86: ممتاز | AK86: 58 | AL86: 38 | AM86: 59 | AN86: 40 | AO86: 195 | AP86: 39 | AQ86: ممتاز | AR86: 55 | AS86: 37 | AT86: 59 | AU86: 38 | AV86: 189 | AW86: 37.8
A87: 30705201702486 | B87: 2007-05-20 | E87: 307 | F87: 69 | G87: =IF(H87="","",SUBTOTAL(3,$H$12:H87)) -> 76 | H87: روان باسم نعيم السيد محمود | I87: 76 | J87: 20 | K87: 5 | L87: 2007 | M87: 11 | N87: 4 | O87: 9 | P87: 59 | Q87: 37 | R87: 57 | S87: 40 | T87: 193 | U87: 96.5 | V87: ممتاز | W87: 55 | X87: 32 | Y87: 54 | Z87: 35 | AA87: 176 | AB87: 70.4 | AC87: ممتاز | AD87: 59 | AE87: 35 | AF87: 59 | AG87: 39 | AH87: 192 | AI87: 38.4 | AJ87: ممتاز | AK87: 53 | AL87: 35 | AM87: 54 | AN87: 40 | AO87: 182 | AP87: 36.4 | AQ87: ممتاز | AR87: 53 | AS87: 37 | AT87: 57 | AU87: 36 | AV87: 183 | AW87: 36.6
A88: 30709051701821 | B88: 2007-09-05 | E88: 239 | F88: 1 | G88: =IF(H88="","",SUBTOTAL(3,$H$12:H88)) -> 77 | H88: رودينه محمود طه محمود عيد | I88: 77 | J88: 5 | K88: 9 | L88: 2007 | M88: 26 | N88: 0 | O88: 9 | P88: 48 | Q88: 27 | R88: 49 | S88: 37 | T88: 161 | U88: 80.5 | V88: جيد جداً | W88: 44 | X88: 15 | Y88: 44 | Z88: 36 | AA88: 139 | AB88: 55.6 | AC88: جيد | AD88: 50 | AE88: 31 | AF88: 48 | AG88: 20 | AH88: 149 | AI88: 29.8 | AJ88: جيد | AK88: 43 | AL88: 30 | AM88: 43 | AN88: 38 | AO88: 154 | AP88: 30.8 | AQ88: جيد جداً | AR88: 40 | AS88: 31 | AT88: 44 | AU88: 35 | AV88: 150 | AW88: 30
A89: 30703141701989 | B89: 2007-03-14 | E89: 240 | F89: 2 | G89: =IF(H89="","",SUBTOTAL(3,$H$12:H89)) -> 78 | H89: رؤي سمير موسي أحمد عبد الدايم | I89: 78 | J89: 14 | K89: 3 | L89: 2007 | M89: 17 | N89: 6 | O89: 9 | P89: 57 | Q89: 39 | R89: 59 | S89: 35 | T89: 190 | U89: 95 | V89: ممتاز | W89: 58 | X89: 32 | Y89: 58 | Z89: 40 | AA89: 188 | AB89: 75.2 | AC89: ممتاز | AD89: 59 | AE89: 39 | AF89: 60 | AG89: 39 | AH89: 197 | AI89: 39.4 | AJ89: ممتاز | AK89: 56 | AL89: 40 | AM89: 51 | AN89: 40 | AO89: 187 | AP89: 37.4 | AQ89: ممتاز | AR89: 55 | AS89: 36 | AT89: 52 | AU89: 40 | AV89: 183 | AW89: 36.6
A90: 30711271701428 | B90: 2007-11-27 | E90: 241 | F90: 3 | G90: =IF(H90="","",SUBTOTAL(3,$H$12:H90)) -> 79 | H90: سامية عبد العزيز محمد عبد العزيز حماد | I90: 79 | J90: 27 | K90: 11 | L90: 2007 | M90: 4 | N90: 10 | O90: 8 | P90: 57 | Q90: 40 | R90: 59 | S90: 38 | T90: 194 | U90: 97 | V90: ممتاز | W90: 58 | X90: 33 | Y90: 58 | Z90: 40 | AA90: 189 | AB90: 75.6 | AC90: ممتاز | AD90: 59 | AE90: 37 | AF90: 60 | AG90: 40 | AH90: 196 | AI90: 39.2 | AJ90: ممتاز | AK90: 58 | AL90: 38 | AM90: 59 | AN90: 40 | AO90: 195 | AP90: 39 | AQ90: ممتاز | AR90: 57 | AS90: 36 | AT90: 60 | AU90: 40 | AV90: 193 | AW90: 38.6
A91: 30705071701784 | B91: 2007-05-07 | E91: 242 | F91: 4 | G91: =IF(H91="","",SUBTOTAL(3,$H$12:H91)) -> 80 | H91: سعاد عادل فتحى عبدالكريم | I91: 80 | J91: 7 | K91: 5 | L91: 2007 | M91: 24 | N91: 4 | O91: 9 | P91: 49 | Q91: 27 | R91: 47 | S91: 26 | T91: 149 | U91: 74.5 | V91: جيد | W91: 47 | X91: 16 | Y91: 51 | Z91: 29 | AA91: 143 | AB91: 57.2 | AC91: جيد | AD91: 46 | AE91: 29 | AF91: 50 | AG91: 37 | AH91: 162 | AI91: 32.4 | AJ91: جيد جداً | AK91: 46 | AL91: 36 | AM91: 53 | AN91: 34 | AO91: 169 | AP91: 33.8 | AQ91: جيد جداً | AR91: 48 | AS91: 33 | AT91: 48 | AU91: 40 | AV91: 169 | AW91: 33.8
A92: 30707271703709 | B92: 2007-07-27 | E92: 243 | F92: 5 | G92: =IF(H92="","",SUBTOTAL(3,$H$12:H92)) -> 81 | H92: سندس ماهر أمين محمد المرادي | I92: 81 | J92: 27 | K92: 7 | L92: 2007 | M92: 4 | N92: 2 | O92: 9 | P92: 55 | Q92: 39 | R92: 58 | S92: 39 | T92: 191 | U92: 95.5 | V92: ممتاز | W92: 54 | X92: 32 | Y92: 55 | Z92: 36 | AA92: 177 | AB92: 70.8 | AC92: ممتاز | AD92: 59 | AE92: 39 | AF92: 60 | AG92: 38 | AH92: 196 | AI92: 39.2 | AJ92: ممتاز | AK92: 58 | AL92: 38 | AM92: 57 | AN92: 38 | AO92: 191 | AP92: 38.2 | AQ92: ممتاز | AR92: 52 | AS92: 34 | AT92: 56 | AU92: 40 | AV92: 182 | AW92: 36.4
A93: 30712051701822 | B93: 2007-12-05 | E93: 244 | F93: 6 | G93: =IF(H93="","",SUBTOTAL(3,$H$12:H93)) -> 82 | H93: شذا أنور أحمد التهامي حجاج | I93: 82 | J93: 5 | K93: 12 | L93: 2007 | M93: 26 | N93: 9 | O93: 8 | P93: 56 | Q93: 37 | R93: 56 | S93: 37 | T93: 186 | U93: 93 | V93: ممتاز | W93: 55 | X93: 32 | Y93: 56 | Z93: 38 | AA93: 181 | AB93: 72.4 | AC93: ممتاز | AD93: 59 | AE93: 39 | AF93: 58 | AG93: 39 | AH93: 195 | AI93: 39 | AJ93: ممتاز | AK93: 58 | AL93: 40 | AM93: 59 | AN93: 40 | AO93: 197 | AP93: 39.4 | AQ93: ممتاز | AR93: 58 | AS93: 34 | AT93: 59 | AU93: 39 | AV93: 190 | AW93: 38
A94: 30706231700182 | B94: 2007-06-23 | E94: 245 | F94: 7 | G94: =IF(H94="","",SUBTOTAL(3,$H$12:H94)) -> 83 | H94: شهد عبد الله فراج أحمد فراج | I94: 83 | J94: 23 | K94: 6 | L94: 2007 | M94: 8 | N94: 3 | O94: 9 | P94: 60 | Q94: 37 | R94: 57 | S94: 38 | T94: 192 | U94: 96 | V94: ممتاز | W94: 59 | X94: 37 | Y94: 60 | Z94: 40 | AA94: 196 | AB94: 78.4 | AC94: ممتاز | AD94: 57 | AE94: 36 | AF94: 60 | AG94: 40 | AH94: 193 | AI94: 38.6 | AJ94: ممتاز | AK94: 56 | AL94: 39 | AM94: 59 | AN94: 40 | AO94: 194 | AP94: 38.8 | AQ94: ممتاز | AR94: 51 | AS94: 36 | AT94: 57 | AU94: 40 | AV94: 184 | AW94: 36.8
A95: 30708151702004 | B95: 2007-08-15 | E95: 246 | F95: 8 | G95: =IF(H95="","",SUBTOTAL(3,$H$12:H95)) -> 84 | H95: شهد علي محمد مصلحي عوض | I95: 84 | J95: 15 | K95: 8 | L95: 2007 | M95: 16 | N95: 1 | O95: 9 | P95: 60 | Q95: 40 | R95: 60 | S95: 38 | T95: 198 | U95: 99 | V95: ممتاز | W95: 58 | X95: 36 | Y95: 58 | Z95: 38 | AA95: 190 | AB95: 76 | AC95: ممتاز | AD95: 59 | AE95: 38 | AF95: 59 | AG95: 39 | AH95: 195 | AI95: 39 | AJ95: ممتاز | AK95: 58 | AL95: 39 | AM95: 59 | AN95: 40 | AO95: 196 | AP95: 39.2 | AQ95: ممتاز | AR95: 56 | AS95: 38 | AT95: 58 | AU95: 40 | AV95: 192 | AW95: 38.4
A96: 30709111702946 | B96: 2007-09-11 | E96: 247 | F96: 9 | G96: =IF(H96="","",SUBTOTAL(3,$H$12:H96)) -> 85 | H96: شهد محمد إبراهيم متولي اليبد | I96: 85 | J96: 11 | K96: 9 | L96: 2007 | M96: 20 | N96: 0 | O96: 9 | P96: 53 | Q96: 33 | R96: 53 | S96: 31 | T96: 170 | U96: 85 | V96: ممتاز | W96: 55 | X96: 26 | Y96: 57 | Z96: 37 | AA96: 175 | AB96: 70 | AC96: ممتاز | AD96: 57 | AE96: 35 | AF96: 59 | AG96: 37 | AH96: 188 | AI96: 37.6 | AJ96: ممتاز | AK96: 59 | AL96: 38 | AM96: 52 | AN96: 36 | AO96: 185 | AP96: 37 | AQ96: ممتاز | AR96: 52 | AS96: 33 | AT96: 52 | AU96: 36 | AV96: 173 | AW96: 34.6
A97: 30708161701227 | B97: 2007-08-16 | E97: 248 | F97: 10 | G97: =IF(H97="","",SUBTOTAL(3,$H$12:H97)) -> 86 | H97: شهد نادر عقل محمد عقل | I97: 86 | J97: 16 | K97: 8 | L97: 2007 | M97: 15 | N97: 1 | O97: 9 | P97: 60 | Q97: 36 | R97: 58 | S97: 39 | T97: 193 | U97: 96.5 | V97: ممتاز | W97: 57 | X97: 33 | Y97: 57 | Z97: 35 | AA97: 182 | AB97: 72.8 | AC97: ممتاز | AD97: 59 | AE97: 38 | AF97: 57 | AG97: 36 | AH97: 190 | AI97: 38 | AJ97: ممتاز | AK97: 57 | AL97: 38 | AM97: 57 | AN97: 38 | AO97: 190 | AP97: 38 | AQ97: ممتاز | AR97: 51 | AS97: 32 | AT97: 57 | AU97: 40 | AV97: 180 | AW97: 36
A98: 30707211702088 | B98: 2007-07-21 | E98: 249 | F98: 11 | G98: =IF(H98="","",SUBTOTAL(3,$H$12:H98)) -> 87 | H98: فاطمة أيمن محمد عبد الستارعطيه | I98: 87 | J98: 21 | K98: 7 | L98: 2007 | M98: 10 | N98: 2 | O98: 9 | P98: 53 | Q98: 36 | R98: 56 | S98: 30 | T98: 175 | U98: 87.5 | V98: ممتاز | W98: 58 | X98: 23 | Y98: 57 | Z98: 40 | AA98: 178 | AB98: 71.2 | AC98: ممتاز | AD98: 55 | AE98: 36 | AF98: 59 | AG98: 38 | AH98: 188 | AI98: 37.6 | AJ98: ممتاز | AK98: 58 | AL98: 34 | AM98: 51 | AN98: 40 | AO98: 183 | AP98: 36.6 | AQ98: ممتاز | AR98: 53 | AS98: 32 | AT98: 57 | AU98: 40 | AV98: 182 | AW98: 36.4
A99: 30709291704585 | B99: 2007-09-29 | E99: 250 | F99: 12 | G99: =IF(H99="","",SUBTOTAL(3,$H$12:H99)) -> 88 | H99: مريم جلال إبراهيم الدسوقي النادي | I99: 88 | J99: 29 | K99: 9 | L99: 2007 | M99: 2 | N99: 0 | O99: 9 | P99: 57 | Q99: 34 | R99: 57 | S99: 37 | T99: 185 | U99: 92.5 | V99: ممتاز | W99: 60 | X99: 33 | Y99: 60 | Z99: 38 | AA99: 191 | AB99: 76.4 | AC99: ممتاز | AD99: 58 | AE99: 39 | AF99: 60 | AG99: 40 | AH99: 197 | AI99: 39.4 | AJ99: ممتاز | AK99: 57 | AL99: 36 | AM99: 53 | AN99: 40 | AO99: 186 | AP99: 37.2 | AQ99: ممتاز | AR99: 55 | AS99: 35 | AT99: 58 | AU99: 40 | AV99: 188 | AW99: 37.6
A100: 30711081701146 | B100: 2007-11-08 | E100: 251 | F100: 13 | G100: =IF(H100="","",SUBTOTAL(3,$H$12:H100)) -> 89 | H100: مريم سعيد عبدالمنعم ابراهيم موسى | I100: 89 | J100: 8 | K100: 11 | L100: 2007 | M100: 23 | N100: 10 | O100: 8 | P100: 60 | Q100: 39 | R100: 60 | S100: 40 | T100: 199 | U100: 99.5 | V100: ممتاز | W100: 57 | X100: 36 | Y100: 57 | Z100: 40 | AA100: 190 | AB100: 76 | AC100: ممتاز | AD100: 60 | AE100: 40 | AF100: 60 | AG100: 39 | AH100: 199 | AI100: 39.8 | AJ100: ممتاز | AK100: 58 | AL100: 38 | AM100: 57 | AN100: 36 | AO100: 189 | AP100: 37.8 | AQ100: ممتاز | AR100: 57 | AS100: 37 | AT100: 59 | AU100: 40 | AV100: 193 | AW100: 38.6
A101: 30703251702727 | B101: 2007-03-25 | E101: 252 | F101: 14 | G101: =IF(H101="","",SUBTOTAL(3,$H$12:H101)) -> 90 | H101: ملك جمال عبد الوهاب علي | I101: 90 | J101: 25 | K101: 3 | L101: 2007 | M101: 6 | N101: 6 | O101: 9 | P101: 60 | Q101: 33 | R101: 58 | S101: 40 | T101: 191 | U101: 95.5 | V101: ممتاز | W101: 59 | X101: 32 | Y101: 59 | Z101: 38 | AA101: 188 | AB101: 75.2 | AC101: ممتاز | AD101: 60 | AE101: 40 | AF101: 60 | AG101: 38 | AH101: 198 | AI101: 39.6 | AJ101: ممتاز | AK101: 59 | AL101: 38 | AM101: 57 | AN101: 38 | AO101: 192 | AP101: 38.4 | AQ101: ممتاز | AR101: 56 | AS101: 38 | AT101: 59 | AU101: 40 | AV101: 193 | AW101: 38.6
A102: 30705051704027 | B102: 2007-05-05 | E102: 253 | F102: 15 | G102: =IF(H102="","",SUBTOTAL(3,$H$12:H102)) -> 91 | H102: ملك حسين موسي ابراهيم موسى | I102: 91 | J102: 5 | K102: 5 | L102: 2007 | M102: 26 | N102: 4 | O102: 9 | P102: 58 | Q102: 38 | R102: 59 | S102: 37 | T102: 192 | U102: 96 | V102: ممتاز | W102: 60 | X102: 36 | Y102: 60 | Z102: 40 | AA102: 196 | AB102: 78.4 | AC102: ممتاز | AD102: 60 | AE102: 38 | AF102: 59 | AG102: 39 | AH102: 196 | AI102: 39.2 | AJ102: ممتاز | AK102: 58 | AL102: 40 | AM102: 58 | AN102: 40 | AO102: 196 | AP102: 39.2 | AQ102: ممتاز | AR102: 59 | AS102: 39 | AT102: 59 | AU102: 40 | AV102: 197 | AW102: 39.4
A103: 30701011708865 | B103: 2007-01-01 | E103: 254 | F103: 16 | G103: =IF(H103="","",SUBTOTAL(3,$H$12:H103)) -> 92 | H103: ملك عماد النادي موسي المرادي | I103: 92 | J103: 1 | K103: 1 | L103: 2007 | M103: 0 | N103: 9 | O103: 9 | P103: 50 | Q103: 25 | R103: 52 | S103: 31 | T103: 158 | U103: 79 | V103: جيد جداً | W103: 56 | X103: 27 | Y103: 57 | Z103: 38 | AA103: 178 | AB103: 71.2 | AC103: ممتاز | AD103: 52 | AE103: 37 | AF103: 56 | AG103: 38 | AH103: 183 | AI103: 36.6 | AJ103: ممتاز | AK103: 52 | AL103: 40 | AM103: 57 | AN103: 40 | AO103: 189 | AP103: 37.8 | AQ103: ممتاز | AR103: 51 | AS103: 37 | AT103: 52 | AU103: 39 | AV103: 179 | AW103: 35.8
A104: 30711121701845 | B104: 2007-11-12 | E104: 255 | F104: 17 | G104: =IF(H104="","",SUBTOTAL(3,$H$12:H104)) -> 93 | H104: ملك ماهر السيد حسين غلوش | I104: 93 | J104: 12 | K104: 11 | L104: 2007 | M104: 19 | N104: 10 | O104: 8 | P104: 60 | Q104: 39 | R104: 57 | S104: 37 | T104: 193 | U104: 96.5 | V104: ممتاز | W104: 57 | X104: 25 | Y104: 57 | Z104: 36 | AA104: 175 | AB104: 70 | AC104: ممتاز | AD104: 58 | AE104: 38 | AF104: 59 | AG104: 38 | AH104: 193 | AI104: 38.6 | AJ104: ممتاز | AK104: 58 | AL104: 40 | AM104: 58 | AN104: 40 | AO104: 196 | AP104: 39.2 | AQ104: ممتاز | AR104: 59 | AS104: 38 | AT104: 59 | AU104: 40 | AV104: 196 | AW104: 39.2
A105: 30712081702084 | B105: 2007-12-08 | E105: 256 | F105: 18 | G105: =IF(H105="","",SUBTOTAL(3,$H$12:H105)) -> 94 | H105: ملك محمد السيد خضير | I105: 94 | J105: 8 | K105: 12 | L105: 2007 | M105: 23 | N105: 9 | O105: 8 | P105: 60 | Q105: 40 | R105: 60 | S105: 39 | T105: 199 | U105: 99.5 | V105: ممتاز | W105: 60 | X105: 39 | Y105: 60 | Z105: 40 | AA105: 199 | AB105: 79.6 | AC105: ممتاز | AD105: 59 | AE105: 39 | AF105: 60 | AG105: 40 | AH105: 198 | AI105: 39.6 | AJ105: ممتاز | AK105: 58 | AL105: 40 | AM105: 58 | AN105: 40 | AO105: 196 | AP105: 39.2 | AQ105: ممتاز | AR105: 58 | AS105: 40 | AT105: 59 | AU105: 40 | AV105: 197 | AW105: 39.4
A106: 30701281702141 | B106: 2007-01-28 | E106: 257 | F106: 19 | G106: =IF(H106="","",SUBTOTAL(3,$H$12:H106)) -> 95 | H106: ملك محمد عبد الله حسن فرج | I106: 95 | J106: 28 | K106: 1 | L106: 2007 | M106: 3 | N106: 8 | O106: 9 | P106: 49 | Q106: 21 | R106: 47 | S106: 23 | T106: 140 | U106: 70 | V106: جيد | W106: 57 | X106: 29 | Y106: 57 | Z106: 34 | AA106: 177 | AB106: 70.8 | AC106: ممتاز | AD106: 47 | AE106: 21 | AF106: 42 | AG106: 27 | AH106: 137 | AI106: 27.4 | AJ106: جيد | AK106: 49 | AL106: 28 | AM106: 50 | AN106: 32 | AO106: 159 | AP106: 31.8 | AQ106: جيد جداً | AR106: 44 | AS106: 35 | AT106: 54 | AU106: 39 | AV106: 172 | AW106: 34.4
A107: 30612141701487 | B107: 2006-12-14 | E107: 258 | F107: 20 | G107: =IF(H107="","",SUBTOTAL(3,$H$12:H107)) -> 96 | H107: ملك محمد عبد الله محمود البكري | I107: 96 | J107: 14 | K107: 12 | L107: 2006 | M107: 17 | N107: 9 | O107: 9 | P107: 60 | Q107: 40 | R107: 48 | S107: 39 | T107: 187 | U107: 93.5 | V107: ممتاز | W107: 57 | X107: 27 | Y107: 55 | Z107: 36 | AA107: 175 | AB107: 70 | AC107: ممتاز | AD107: 59 | AE107: 40 | AF107: 60 | AG107: 38 | AH107: 197 | AI107: 39.4 | AJ107: ممتاز | AK107: 58 | AL107: 40 | AM107: 58 | AN107: 40 | AO107: 196 | AP107: 39.2 | AQ107: ممتاز | AR107: 57 | AS107: 38 | AT107: 59 | AU107: 39 | AV107: 193 | AW107: 38.6
A108: 30709011703988 | B108: 2007-09-01 | E108: 259 | F108: 21 | G108: =IF(H108="","",SUBTOTAL(3,$H$12:H108)) -> 97 | H108: ملك نبيل أحمد أبو المجد أحمد | I108: 97 | J108: =DAY(B108) -> 1 | K108: =MONTH(B108) -> 9 | L108: =YEAR(B108) -> 2007 | M108: 0 | N108: 1 | O108: 9 | P108: 54 | Q108: 28 | R108: 54 | S108: 35 | T108: 171 | U108: 85.5 | V108: ممتاز | W108: 58 | X108: 32 | Y108: 59 | Z108: 26 | AA108: 175 | AB108: 70 | AC108: ممتاز | AD108: 55 | AE108: 34 | AF108: 58 | AG108: 36 | AH108: 183 | AI108: 36.6 | AJ108: ممتاز | AK108: 49 | AL108: 34 | AM108: 56 | AN108: 40 | AO108: 179 | AP108: 35.8 | AQ108: ممتاز | AR108: 48 | AS108: 38 | AT108: 59 | AU108: 39 | AV108: 184 | AW108: 36.8
A109: 30704081701123 | B109: 2007-04-08 | E109: 260 | F109: 22 | G109: =IF(H109="","",SUBTOTAL(3,$H$12:H109)) -> 98 | H109: منه امير عبد الله ابراهيم عامر | I109: =IF(OR($I$7=0,$H109=""),"",$I108+1) -> 98 | J109: 8 | K109: 4 | L109: 2007 | M109: 23 | N109: 5 | O109: 9 | P109: 54 | Q109: 31 | R109: 55 | S109: 26 | T109: 166 | U109: 83 | V109: جيد جداً | W109: 43 | X109: 15 | Y109: 48 | Z109: 26 | AA109: 132 | AB109: 52.8 | AC109: جيد | AD109: 50 | AE109: 23 | AF109: 48 | AG109: 22 | AH109: 143 | AI109: 28.6 | AJ109: جيد | AK109: 50 | AL109: 30 | AM109: 53 | AN109: 30 | AO109: 163 | AP109: 32.6 | AQ109: جيد جداً | AR109: 55 | AS109: 31 | AT109: 48 | AU109: 32 | AV109: 166 | AW109: 33.2
A110: 30703061400244 | B110: 2007-03-06 | E110: 261 | F110: 23 | G110: =IF(H110="","",SUBTOTAL(3,$H$12:H110)) -> 99 | H110: منه ماهر عبد المولي الصادق فرج | I110: 99 | J110: 6 | K110: 3 | L110: 2007 | M110: 25 | N110: 6 | O110: 9 | P110: 60 | Q110: 40 | R110: 58 | S110: 37 | T110: 195 | U110: 97.5 | V110: ممتاز | W110: 57 | X110: 37 | Y110: 58 | Z110: 40 | AA110: 192 | AB110: 76.8 | AC110: ممتاز | AD110: 58 | AE110: 38 | AF110: 60 | AG110: 39 | AH110: 195 | AI110: 39 | AJ110: ممتاز | AK110: 54 | AL110: 40 | AM110: 57 | AN110: 32 | AO110: 183 | AP110: 36.6 | AQ110: ممتاز | AR110: 59 | AS110: 39 | AT110: 59 | AU110: 40 | AV110: 197 | AW110: 39.4
A111: 30704041702747 | B111: 2007-04-04 | E111: 262 | F111: 24 | G111: =IF(H111="","",SUBTOTAL(3,$H$12:H111)) -> 100 | H111: مني جمال ابراهيم محمد عبدالله | I111: 100 | J111: 4 | K111: 4 | L111: 2007 | M111: 27 | N111: 5 | O111: 9 | P111: 59 | Q111: 38 | R111: 58 | S111: 37 | T111: 192 | U111: 96 | V111: ممتاز | W111: 60 | X111: 39 | Y111: 60 | Z111: 40 | AA111: 199 | AB111: 79.6 | AC111: ممتاز | AD111: 60 | AE111: 37 | AF111: 59 | AG111: 37 | AH111: 193 | AI111: 38.6 | AJ111: ممتاز | AK111: 59 | AL111: 40 | AM111: 58 | AN111: 38 | AO111: 195 | AP111: 39 | AQ111: ممتاز | AR111: 59 | AS111: 39 | AT111: 59 | AU111: 40 | AV111: 197 | AW111: 39.4
A112: 30708081704446 | B112: 2007-08-08 | E112: 263 | F112: 25 | G112: =IF(H112="","",SUBTOTAL(3,$H$12:H112)) -> 101 | H112: نادين أيمن عبد الله الصادق فرج | I112: 101 | J112: 8 | K112: 8 | L112: 2007 | M112: 23 | N112: 1 | O112: 9 | P112: 60 | Q112: 38 | R112: 58 | S112: 40 | T112: 196 | U112: 98 | V112: ممتاز | W112: 58 | X112: 33 | Y112: 60 | Z112: 36 | AA112: 187 | AB112: 74.8 | AC112: ممتاز | AD112: 59 | AE112: 38 | AF112: 60 | AG112: 40 | AH112: 197 | AI112: 39.4 | AJ112: ممتاز | AK112: 59 | AL112: 32 | AM112: 59 | AN112: 38 | AO112: 188 | AP112: 37.6 | AQ112: ممتاز | AR112: 56 | AS112: 38 | AT112: 59 | AU112: 40 | AV112: 193 | AW112: 38.6
A113: 30708081704462 | B113: 2007-08-08 | E113: 264 | F113: 26 | G113: =IF(H113="","",SUBTOTAL(3,$H$12:H113)) -> 102 | H113: نور أحمد عبد الرازق يوسف عبد الله | I113: 102 | J113: 8 | K113: 8 | L113: 2007 | M113: 23 | N113: 1 | O113: 9 | P113: 60 | Q113: 39 | R113: 57 | S113: 39 | T113: 195 | U113: 97.5 | V113: ممتاز | W113: 59 | X113: 40 | Y113: 60 | Z113: 40 | AA113: 199 | AB113: 79.6 | AC113: ممتاز | AD113: 59 | AE113: 37 | AF113: 60 | AG113: 40 | AH113: 196 | AI113: 39.2 | AJ113: ممتاز | AK113: 59 | AL113: 38 | AM113: 58 | AN113: 40 | AO113: 195 | AP113: 39 | AQ113: ممتاز | AR113: 58 | AS113: 39 | AT113: 59 | AU113: 40 | AV113: 196 | AW113: 39.2
A114: 30701011708881 | B114: 2007-01-01 | E114: 265 | F114: 27 | G114: =IF(H114="","",SUBTOTAL(3,$H$12:H114)) -> 103 | H114: نورا إبراهيم كمال الصادق فرج | I114: 103 | J114: 1 | K114: 1 | L114: 2007 | M114: 0 | N114: 9 | O114: 9 | P114: 57 | Q114: 38 | R114: 57 | S114: 36 | T114: 188 | U114: 94 | V114: ممتاز | W114: 58 | X114: 35 | Y114: 60 | Z114: 39 | AA114: 192 | AB114: 76.8 | AC114: ممتاز | AD114: 58 | AE114: 35 | AF114: 60 | AG114: 40 | AH114: 193 | AI114: 38.6 | AJ114: ممتاز | AK114: 56 | AL114: 36 | AM114: 56 | AN114: 40 | AO114: 188 | AP114: 37.6 | AQ114: ممتاز | AR114: 55 | AS114: 39 | AT114: 58 | AU114: 39 | AV114: 191 | AW114: 38.2
A115: 30712121702848 | B115: 2007-12-12 | E115: 266 | F115: 28 | G115: =IF(H115="","",SUBTOTAL(3,$H$12:H115)) -> 104 | H115: هاجر ايمن محمود السيد المرادى | I115: 104 | J115: 12 | K115: 12 | L115: 2007 | M115: 19 | N115: 9 | O115: 8 | P115: 53 | Q115: 32 | R115: 53 | S115: 27 | T115: 165 | U115: 82.5 | V115: جيد جداً | W115: 50 | X115: 13 | Y115: 51 | Z115: 14 | AA115: 128 | AB115: 51.2 | AC115: مقبول | AD115: 46 | AE115: 29 | AF115: 49 | AG115: 22 | AH115: 146 | AI115: 29.2 | AJ115: جيد | AK115: 50 | AL115: 34 | AM115: 47 | AN115: 30 | AO115: 161 | AP115: 32.2 | AQ115: جيد جداً | AR115: 51 | AS115: 36 | AT115: 48 | AU115: 32 | AV115: 167 | AW115: 33.4
A116: 30706301701122 | B116: =TEXT(LEFT(A116,7)+17000000,"####-##-##")+0 -> 2007-06-30 | E116: 267 | F116: 29 | G116: =IF(H116="","",SUBTOTAL(3,$H$12:H116)) -> 105 | H116: هبة الله السيد فهمي محمد إبراهيم | I116: 105 | J116: 30 | K116: 6 | L116: 2007 | M116: =DATEDIF(DATE(L116,K116,J116),$M$11,"md") -> 1 | N116: =DATEDIF(DATE(L116,K116,J116),$M$11,"ym") -> 3 | O116: =DATEDIF(DATE(L116,K116,J116),$M$11,"y") -> 9 | P116: 60 | Q116: 40 | R116: 60 | S116: 40 | T116: 200 | U116: 100 | V116: ممتاز | W116: 59 | X116: 37 | Y116: 60 | Z116: 40 | AA116: 196 | AB116: 78.4 | AC116: ممتاز | AD116: 60 | AE116: 40 | AF116: 60 | AG116: 40 | AH116: 200 | AI116: 40 | AJ116: ممتاز | AK116: 60 | AL116: 40 | AM116: 59 | AN116: 40 | AO116: 199 | AP116: 39.8 | AQ116: ممتاز | AR116: 58 | AS116: 40 | AT116: 60 | AU116: 40 | AV116: 198 | AW116: 39.6
A117: 30705261400802 | B117: =TEXT(LEFT(A117,7)+17000000,"####-##-##")+0 -> 2007-05-26 | E117: 268 | F117: 30 | G117: =IF(H117="","",SUBTOTAL(3,$H$12:H117)) -> 106 | H117: هدير أحمد محمد أحمد مكاوي | I117: 106 | J117: 26 | K117: 5 | L117: 2007 | M117: =DATEDIF(DATE(L117,K117,J117),$M$11,"md") -> 5 | N117: =DATEDIF(DATE(L117,K117,J117),$M$11,"ym") -> 4 | O117: =DATEDIF(DATE(L117,K117,J117),$M$11,"y") -> 9 | P117: 43 | Q117: 11 | R117: 47 | S117: 9 | T117: 110 | U117: 55 | V117: دون المستوى | W117: 41 | X117: 9 | Y117: 41 | Z117: 22 | AA117: 113 | AB117: 45.2 | AC117: مقبول | AD117: 39 | AE117: 10 | AF117: 40 | AG117: 7 | AH117: 96 | AI117: 19.2 | AJ117: دون المستوى | AK117: 43 | AL117: 18 | AM117: 30 | AN117: 14 | AO117: 105 | AP117: 21 | AQ117: مقبول | AR117: 41 | AS117: 28 | AT117: 43 | AU117: 23 | AV117: 135 | AW117: 27
A118: 30711231701549 | B118: =TEXT(LEFT(A118,7)+17000000,"####-##-##")+0 -> 2007-11-23 | E118: 269 | F118: 31 | G118: =IF(H118="","",SUBTOTAL(3,$H$12:H118)) -> 107 | H118: وفاء علاء محمد علي حسن | I118: 107 | J118: 23 | K118: 11 | L118: 2007 | M118: =DATEDIF(DATE(L118,K118,J118),$M$11,"md") -> 8 | N118: =DATEDIF(DATE(L118,K118,J118),$M$11,"ym") -> 10 | O118: =DATEDIF(DATE(L118,K118,J118),$M$11,"y") -> 8 | P118: 60 | Q118: 40 | R118: 60 | S118: 40 | T118: 200 | U118: 100 | V118: ممتاز | W118: 58 | X118: 36 | Y118: 59 | Z118: 40 | AA118: 193 | AB118: 77.2 | AC118: ممتاز | AD118: 60 | AE118: 40 | AF118: 60 | AG118: 40 | AH118: 200 | AI118: 40 | AJ118: ممتاز | AK118: 59 | AL118: 40 | AM118: 58 | AN118: 40 | AO118: 197 | AP118: 39.4 | AQ118: ممتاز | AR118: 59 | AS118: 39 | AT118: 59 | AU118: 40 | AV118: 197 | AW118: 39.4
H120: اللــــــــــون | P120: لغة عربية | W120: رياضيات | AD120: لغة إنجليزية | AK120: دراسات | AR120: علوم
U121: =ColorFunction(H121,$U$12:$U$118) -> 98 | V121: =ColorFunction(I121,$U$12:$U$118) -> 0 | W121: 0 | X121: 0 | Y121: 0 | Z121: 0 | AA121: 0 | AB121: =ColorFunction(H121,$AB$12:$AB$118) -> 87 | AC121: 0 | AD121: 0 | AE121: 0 | AF121: 0 | AG121: 0 | AH121: 0 | AI121: =ColorFunction(H121,$AI$12:$AI$118) -> 95 | AJ121: 0 | AK121: 0 | AL121: 0 | AM121: 0 | AN121: 0 | AO121: 0 | AP121: =ColorFunction(H121,$AP$12:$AP$118) -> 97 | AQ121: 0 | AR121: 0 | AS121: 0 | AT121: 0 | AU121: 0 | AV121: 0 | AW121: =ColorFunction(H121,$AW$12:$AW$118) -> 89
U122: =ColorFunction(H122,$U$12:$U$118) -> 3 | AB122: =ColorFunction(H122,$AB$12:$AB$118) -> 13 | AC122: =ColorFunction(P122,$U$12:$U$118) -> 0 | AD122: =ColorFunction(Q122,$U$12:$U$118) -> 0 | AE122: =ColorFunction(R122,$U$12:$U$118) -> 0 | AF122: =ColorFunction(S122,$U$12:$U$118) -> 0 | AG122: =ColorFunction(T122,$U$12:$U$118) -> 0 | AH122: =ColorFunction(U122,$U$12:$U$118) -> 0 | AI122: =ColorFunction(H122,$AI$12:$AI$118) -> 5 | AJ122: =ColorFunction(W122,$U$12:$U$118) -> 0 | AK122: =ColorFunction(X122,$U$12:$U$118) -> 0 | AL122: =ColorFunction(Y122,$U$12:$U$118) -> 0 | AM122: =ColorFunction(Z122,$U$12:$U$118) -> 0 | AN122: =ColorFunction(AA122,$U$12:$U$118) -> 0 | AO122: =ColorFunction(AB122,$U$12:$U$118) -> 0 | AP122: =ColorFunction(H122,$AP$12:$AP$118) -> 4 | AQ122: =ColorFunction(AD122,$U$12:$U$118) -> 0 | AR122: =ColorFunction(AE122,$U$12:$U$118) -> 0 | AS122: =ColorFunction(AF122,$U$12:$U$118) -> 0 | AT122: =ColorFunction(AG122,$U$12:$U$118) -> 0 | AU122: =ColorFunction(AH122,$U$12:$U$118) -> 0 | AV122: =ColorFunction(AI122,$U$12:$U$118) -> 0 | AW122: =ColorFunction(H122,$AW$12:$AW$118) -> 11
U123: 6 | AB123: 6 | AC123: 0 | AD123: 0 | AE123: 0 | AF123: 0 | AG123: 0 | AH123: 0 | AI123: 7 | AJ123: 0 | AK123: 0 | AL123: 0 | AM123: 0 | AN123: 0 | AO123: 0 | AP123: 6 | AQ123: 0 | AR123: 0 | AS123: 0 | AT123: 0 | AU123: 0 | AV123: 0 | AW123: 6
G124: =IF(#REF!="","",SUBTOTAL(3,$H$12:H123)) -> 
G125: =IF(H125="","",SUBTOTAL(3,$H$12:H125)) -> 
G126: =IF(H126="","",SUBTOTAL(3,$H$12:H126)) -> 
G127: =IF(H127="","",SUBTOTAL(3,$H$12:H127)) -> 
G128: =IF(H128="","",SUBTOTAL(3,$H$12:H128)) -> 
G129: =IF(H129="","",SUBTOTAL(3,$H$12:H129)) -> 
G130: =IF(H130="","",SUBTOTAL(3,$H$12:H130)) -> 
G131: =IF(H131="","",SUBTOTAL(3,$H$12:H131)) -> 
G132: =IF(H132="","",SUBTOTAL(3,$H$12:H132)) -> 
G133: =IF(H133="","",SUBTOTAL(3,$H$12:H133)) -> 
G134: =IF(H134="","",SUBTOTAL(3,$H$12:H134)) -> 
G135: =IF(H135="","",SUBTOTAL(3,$H$12:H135)) -> 
G136: =IF(H136="","",SUBTOTAL(3,$H$12:H136)) -> 
G137: =IF(H137="","",SUBTOTAL(3,$H$12:H137)) -> 
G138: =IF(H138="","",SUBTOTAL(3,$H$12:H138)) -> 
G139: =IF(H139="","",SUBTOTAL(3,$H$12:H139)) -> 
G140: =IF(H140="","",SUBTOTAL(3,$H$12:H140)) -> 
G141: =IF(H141="","",SUBTOTAL(3,$H$12:H141)) -> 
G142: =IF(H142="","",SUBTOTAL(3,$H$12:H142)) -> 
G143: =IF(H143="","",SUBTOTAL(3,$H$12:H143)) -> 
G144: =IF(H144="","",SUBTOTAL(3,$H$12:H144)) -> 
G145: =IF(H145="","",SUBTOTAL(3,$H$12:H145)) -> 
G146: =IF(H146="","",SUBTOTAL(3,$H$12:H146)) -> 
G147: =IF(H147="","",SUBTOTAL(3,$H$12:H147)) -> 
G148: =IF(H148="","",SUBTOTAL(3,$H$12:H148)) -> 
G149: =IF(H149="","",SUBTOTAL(3,$H$12:H149)) -> 
G150: =IF(H150="","",SUBTOTAL(3,$H$12:H150)) -> 
G151: =IF(H151="","",SUBTOTAL(3,$H$12:H151)) -> 
G152: =IF(H152="","",SUBTOTAL(3,$H$12:H152)) -> 
G153: =IF(H153="","",SUBTOTAL(3,$H$12:H153)) -> 
G154: =IF(H154="","",SUBTOTAL(3,$H$12:H154)) -> 
G155: =IF(H155="","",SUBTOTAL(3,$H$12:H155)) -> 
G156: =IF(H156="","",SUBTOTAL(3,$H$12:H156)) -> 
G157: =IF(H157="","",SUBTOTAL(3,$H$12:H157)) -> 
G158: =IF(H158="","",SUBTOTAL(3,$H$12:H158)) -> 
G159: =IF(H159="","",SUBTOTAL(3,$H$12:H159)) -> 
G160: =IF(H160="","",SUBTOTAL(3,$H$12:H160)) -> 
G161: =IF(H161="","",SUBTOTAL(3,$H$12:H161)) -> 
G162: =IF(H162="","",SUBTOTAL(3,$H$12:H162)) -> 
G163: =IF(H163="","",SUBTOTAL(3,$H$12:H163)) -> 
G164: =IF(H164="","",SUBTOTAL(3,$H$12:H164)) -> 
G165: =IF(H165="","",SUBTOTAL(3,$H$12:H165)) -> 
G166: =IF(H166="","",SUBTOTAL(3,$H$12:H166)) -> 
G167: =IF(H167="","",SUBTOTAL(3,$H$12:H167)) -> 
G168: =IF(H168="","",SUBTOTAL(3,$H$12:H168)) -> 
G169: =IF(H169="","",SUBTOTAL(3,$H$12:H169)) -> 
G170: =IF(H170="","",SUBTOTAL(3,$H$12:H170)) -> 
G171: =IF(H171="","",SUBTOTAL(3,$H$12:H171)) -> 
G172: =IF(H172="","",SUBTOTAL(3,$H$12:H172)) -> 
G173: =IF(H173="","",SUBTOTAL(3,$H$12:H173)) -> 
G174: =IF(H174="","",SUBTOTAL(3,$H$12:H174)) -> 
G175: =IF(H175="","",SUBTOTAL(3,$H$12:H175)) -> 
G176: =IF(H176="","",SUBTOTAL(3,$H$12:H176)) -> 
G177: =IF(H177="","",SUBTOTAL(3,$H$12:H177)) -> 
G178: =IF(H178="","",SUBTOTAL(3,$H$12:H178)) -> 
G179: =IF(H179="","",SUBTOTAL(3,$H$12:H179)) -> 
G180: =IF(H180="","",SUBTOTAL(3,$H$12:H180)) -> 
G181: =IF(H181="","",SUBTOTAL(3,$H$12:H181)) -> 
G182: =IF(H182="","",SUBTOTAL(3,$H$12:H182)) -> 
G183: =IF(H183="","",SUBTOTAL(3,$H$12:H183)) -> 
G184: =IF(H184="","",SUBTOTAL(3,$H$12:H184)) -> 
G185: =IF(H185="","",SUBTOTAL(3,$H$12:H185)) -> 
G186: =IF(H186="","",SUBTOTAL(3,$H$12:H186)) -> 
G187: =IF(H187="","",SUBTOTAL(3,$H$12:H187)) -> 
G188: =IF(H188="","",SUBTOTAL(3,$H$12:H188)) -> 
G189: =IF(H189="","",SUBTOTAL(3,$H$12:H189)) -> 
G190: =IF(H190="","",SUBTOTAL(3,$H$12:H190)) -> 
G191: =IF(H191="","",SUBTOTAL(3,$H$12:H191)) -> 
G192: =IF(H192="","",SUBTOTAL(3,$H$12:H192)) -> 
G193: =IF(H193="","",SUBTOTAL(3,$H$12:H193)) -> 
G194: =IF(H194="","",SUBTOTAL(3,$H$12:H194)) -> 
G195: =IF(H195="","",SUBTOTAL(3,$H$12:H195)) -> 
G196: =IF(H196="","",SUBTOTAL(3,$H$12:H196)) -> 
G197: =IF(H197="","",SUBTOTAL(3,$H$12:H197)) -> 
G198: =IF(H198="","",SUBTOTAL(3,$H$12:H198)) -> 
G199: =IF(H199="","",SUBTOTAL(3,$H$12:H199)) -> 
G200: =IF(H200="","",SUBTOTAL(3,$H$12:H200)) -> 
G201: =IF(H201="","",SUBTOTAL(3,$H$12:H201)) -> 
... 427 more rows

Sheet شهادات الأوائل (hidden)
A2: إدارة قويسنا التعليمية | P2: الــرابـــــــــــــع
A3: مدرسة / منشاة دملو الإبتدائية0 | E3: رقم الجلوس | G3: =LOOKUP(F4,AB7:AB23,'شيت الرابع'!#REF!) ->  | K3: =IF(L5>=90%,"بارك الله لك","") -> 
A4: الاســـم/ | B4: =LOOKUP(F4,AB7:AB22,'شيت الرابع'!#REF!) ->  | F4: 1 | J4: =LOOKUP(F4,AB7:AB23,'شيت الرابع'!#REF!) ->  | K4: الترتيب | L4: النسبة
A5: الصف الرابع | D5: نتيجة امتحان اخرالعام 2013/2012 | K5: =LOOKUP(F4,AB7:AB23,'شيت الرابع'!#REF!) ->  | L5: =K9/K7 -> 
A6: النهاية | B6: عربي | C6: حساب | D6: انجليزي | E6: علوم | F6: دراسات | G6: فنى | H6: رياضى | I6: نشاط1 | J6: نشاط2 | K6: المجموع | L6: دين
A7: الكبرى | B7: 100 | C7: 80 | D7: 40 | E7: 40 | F7: 40 | G7: 20 | H7: 20 | I7: 20 | J7: 20 | K7: 380 | L7: 40 | Q7: الرئيسية | AB7: 1
A8: الصغرى | B8: 50 | C8: 40 | D8: 20 | E8: 20 | F8: 20 | G8: 10 | H8: 10 | I8: 10 | J8: 10 | K8: 190 | L8: 20 | AB8: 2
A9: الدرجة | B9: =LOOKUP(F4,AB7:AB23,'شيت الرابع'!#REF!) ->  | C9: =LOOKUP(F4,AB7:AB23,'شيت الرابع'!#REF!) ->  | D9: =LOOKUP(F4,AB7:AB23,'شيت الرابع'!#REF!) ->  | E9: =LOOKUP(F4,AB7:AB23,'شيت الرابع'!#REF!) ->  | F9: =LOOKUP(F4,AB7:AB23,'شيت الرابع'!#REF!) ->  | G9: =LOOKUP(F4,AB7:AB23,'شيت الرابع'!#REF!) ->  | H9: =LOOKUP(F4,AB7:AB23,'شيت الرابع'!#REF!) ->  | I9: =LOOKUP(F4,AB7:AB23,'شيت الرابع'!#REF!) ->  | J9: =LOOKUP(F4,AB7:AB23,'شيت الرابع'!#REF!) ->  | K9: =LOOKUP(F4,AB7:AB23,'شيت الرابع'!#REF!) ->  | L9: =LOOKUP(F4,AB7:AB23,'شيت الرابع'!#REF!) ->  | AB9: 3
A10: ش / ط | D10: وكيل المدرسة | K10: مديرة المدرسة | O10: الإســـــــــــم | AB10: 4
A11: عايده | AB11: 5
AB12: 6
AB13: 7
AB14: 8
AB15: 9
O16: رقم الجلوس | AB16: 10
A17: إدارة قويسنا التعليمية | F17: =F4+1 -> 2 | AB17: 11
A18: مدرسة / منشاة دملو الإبتدائية0 | E18: رقم الجلوس | G18: =LOOKUP(F17,AB7:AB23,'شيت الرابع'!#REF!) ->  | K18: =IF(L20>=90%,"بارك الله لك","") ->  | AB18: 12
A19: الاســـم/ | B19: =LOOKUP(F17,AB7:AB22,'شيت الرابع'!#REF!) ->  | J19: =LOOKUP(F17,AB7:AB23,'شيت الرابع'!#REF!) ->  | K19: الترتيب | L19: النسبة المئوية | AB19: 13
A20: الصف الرابع | D20: نتيجة امتحان اخرالعام 2013/2012 | K20: =LOOKUP(F17,AB7:AB23,'شيت الرابع'!#REF!) ->  | L20: =K24/K22 ->  | AB20: 14
A21: النهاية | B21: عربي | C21: حساب | D21: انجليزي | E21: علوم | F21: دراسات | G21: فنى | H21: رياضى | I21: نشاط1 | J21: نشاط2 | K21: المجموع | L21: دين | AB21: 15
A22: الكبرى | B22: 100 | C22: 80 | D22: 40 | E22: 40 | F22: 40 | G22: 20 | H22: 20 | I22: 20 | J22: 20 | K22: 380 | L22: 40 | AB22: 16
A23: الصغرى | B23: 50 | C23: 40 | D23: 20 | E23: 20 | F23: 20 | G23: 10 | H23: 10 | I23: 10 | J23: 10 | K23: 190 | L23: 20 | AB23: 17
A24: الدرجة | B24: =LOOKUP(F17,AB7:AB23,'شيت الرابع'!#REF!) ->  | C24: =LOOKUP(F17,AB7:AB23,'شيت الرابع'!#REF!) ->  | D24: =LOOKUP(F17,AB7:AB23,'شيت الرابع'!#REF!) ->  | E24: =LOOKUP(F17,AB7:AB23,'شيت الرابع'!#REF!) ->  | F24: =LOOKUP(F17,AB7:AB23,'شيت الرابع'!#REF!) ->  | G24: =LOOKUP(F17,AB7:AB23,'شيت الرابع'!#REF!) ->  | H24: =LOOKUP(F17,AB7:AB23,'شيت الرابع'!#REF!) ->  | I24: =LOOKUP(F17,AB7:AB23,'شيت الرابع'!#REF!) ->  | J24: =LOOKUP(F17,AB7:AB23,'شيت الرابع'!#REF!) ->  | K24: =LOOKUP(F17,AB7:AB23,'شيت الرابع'!#REF!) ->  | L24: =LOOKUP(F17,AB7:AB23,'شيت الرابع'!#REF!) -> 
A25: ش / ط | D25: وكيل المدرسة | K25: مديرة المدرسة
A26: عايده
A30: إدارة قويسنا التعليمية | F30: =F17+1 -> 3
A31: مدرسة / منشاة دملو الإبتدائية0 | E31: رقم الجلوس | G31: =LOOKUP(F30,AB7:AB23,'شيت الرابع'!#REF!) ->  | K31: =IF(L33>=90%,"بارك الله لك","") -> 
A32: الاســـم/ | B32: =LOOKUP(F30,AB7:AB22,'شيت الرابع'!#REF!) ->  | J32: =LOOKUP(F30,AB7:AB23,'شيت الرابع'!#REF!) ->  | K32: الترتيب | L32: النسبة المئوية
A33: الصف الرابع | D33: نتيجة امتحان اخرالعام 2013/2012 | K33: =LOOKUP(F30,AB7:AB23,'شيت الرابع'!#REF!) ->  | L33: =K37/K35 -> 
A34: النهاية | B34: عربي | C34: حساب | D34: انجليزي | E34: علوم | F34: دراسات | G34: فنى | H34: رياضى | I34: نشاط1 | J34: نشاط2 | K34: المجموع | L34: دين
A35: الكبرى | B35: 100 | C35: 80 | D35: 40 | E35: 40 | F35: 40 | G35: 20 | H35: 20 | I35: 20 | J35: 20 | K35: 380 | L35: 40
A36: الصغرى | B36: 50 | C36: 40 | D36: 20 | E36: 20 | F36: 20 | G36: 10 | H36: 10 | I36: 10 | J36: 10 | K36: 190 | L36: 20
A37: الدرجة | B37: =LOOKUP(F30,AB7:AB23,'شيت الرابع'!#REF!) ->  | C37: =LOOKUP(F30,AB7:AB23,'شيت الرابع'!#REF!) ->  | D37: =LOOKUP(F30,AB7:AB23,'شيت الرابع'!#REF!) ->  | E37: =LOOKUP(F30,AB7:AB23,'شيت الرابع'!#REF!) ->  | F37: =LOOKUP(F30,AB7:AB23,'شيت الرابع'!#REF!) ->  | G37: =LOOKUP(F30,AB7:AB23,'شيت الرابع'!#REF!) ->  | H37: =LOOKUP(F30,AB7:AB23,'شيت الرابع'!#REF!) ->  | I37: =LOOKUP(F30,AB7:AB23,'شيت الرابع'!#REF!) ->  | J37: =LOOKUP(F30,AB7:AB23,'شيت الرابع'!#REF!) ->  | K37: =LOOKUP(F30,AB7:AB23,'شيت الرابع'!#REF!) ->  | L37: =LOOKUP(F30,AB7:AB23,'شيت الرابع'!#REF!) -> 
A38: ش / ط | D38: وكيل المدرسة | K38: مديرة المدرسة
A39: عايده
